Workbook

Sheet Додаток до Паспорту (Класика 1 (hidden)
A1: Додаток 1 до протоколу Кредитної Ради АБ "УКРГАЗБАНК" від 01.06.2017 №92/12
A2: ТИПОВА ФОРМА
A3: Додаток до Паспорту споживчого кредиту за програмою/продуктом:
A4: «КРЕДИТ ПІД ДЕПОЗИТ»
A8: Обрані споживачем умови кредитування
A9: Значення у цій колонці зазначається департаментом роздрібного банкінгу згідно умов програми/продукту кредитування та можуть корегуватися (додаватися або вилучатися ) | H9: Значення у цій колонці зазначається підрозділом Банку, до якого звернувся споживач
A10: Власний платіж (внесок), % | H10: 0.1 | AA10: Класика | AB10: Есть
A11: Сума / ліміт кредиту, грн. | H11: 4000000 | AA11: Ануїтет | AB11: Нет
A12: Строк кредитування, міс. | H12: 12
A13: Процентна ставка (номінальна), % річних | H13: 22.63
A14: Схема погашення кредиту | H14: 1 | AB14: 0.007
A15: =CONCATENATE("Месячный платеж по кредиту, ",L22) -> Месячный платеж по кредиту, | H15: =IF(data=1,sumkred/strok,sumkred*PROC/100/((1-POWER(1+PROC/1200,-strok))*12)) -> 333333.3333
A16: Комісія за надання кредиту, % від суми кредиту | H16: 0 | AB16: 0.01
A17: Відкриття поточного рахунку, грн. | H17: 100
A18: Переказ/видача готівкою кредитних коштів, виданих АБ "УКРГАЗБАНК", % від суми переказу (суми кредиту) | H18: 0.007
A19: ….
A20: Комісія за внесення запису про реєстрацію обтяження предмету застави в ДРОРМ, з ПДВ | H20: 750
A21: Відкриття поточного рахунку, операції за яким здійснюються з використанням електронних платіжних засобів ("ЕКО-кредитка") | H21: окремо плата не стягується
A22: 2 | V22: грн.
A23: Місяць | B23: 1 - й рік | E23: 2 - й рік | H23: 3 - й рік | K23: 4 - й рік | N23: 5 - й рік | Q23: 6 - й рік | T23: 7 - й рік
B24: Залишок по кредиту | C24: Проценти до сплати | D24: Загальний платіж | E24: Залишок по кредиту | F24: Проценти до сплати | G24: Загальний платіж | H24: Залишок по кредиту | I24: Проценти до сплати | J24: Загальний платіж | K24: Залишок по кредиту | L24: Проценти до сплати | M24: Загальний платіж | N24: Залишок по кредиту | O24: Проценти до сплати | P24: Загальний платіж | Q24: Залишок по кредиту | R24: Проценти до сплати | S24: Загальний платіж | T24: Залишок по кредиту | U24: Проценти до сплати | V24: Загальний платіж
A25: 1 міс. | B25: =sumkred -> 4000000 | C25: =IF(data=1,B25*(PROC/36500)*30.42,B25*(PROC/36000)*30) -> 75441.6 | D25: =IF(data=2,C25,IF(data=1,IF(C25>0,C25+sumproplat,0),IF(B25>sumproplat*2,sumproplat,B25+C25))) -> 408774.9333 | E25: =IF(data=1,IF((B36-sumproplat)>0,B36-sumproplat,0),IF(B36-(sumproplat-C36)>0,B36-(D36-C36),0)) -> 0 | F25: =IF(data=1,E25*(PROC/36500)*30.42,E25*(PROC/36000)*30) -> 0 | G25: =IF(data=1,IF(F25>0.0001,F25+sumproplat,0),IF(E25>sumproplat*2,sumproplat,E25+F25)) -> 0 | H25: =IF(data=1,IF((E36-sumproplat)>0,E36-sumproplat,0),IF(E36-(sumproplat-F36)>0,E36-(G36-F36),0)) -> 0 | I25: =IF(data=1,H25*(PROC/36500)*30.42,H25*(PROC/36000)*30) -> 0 | J25: =IF(data=1,IF(I25>0.0001,I25+sumproplat,0),IF(H25>sumproplat*2,sumproplat,H25+I25)) -> 0 | K25: =IF(data=1,IF((H36-sumproplat)>0,H36-sumproplat,0),IF(H36-(sumproplat-I36)>0,H36-(J36-I36),0)) -> 0 | L25: =IF(data=1,K25*(PROC/36500)*30.42,K25*(PROC/36000)*30) -> 0 | M25: =IF(data=1,IF(L25>0.0001,L25+sumproplat,0),IF(K25>sumproplat*2,sumproplat,K25+L25)) -> 0 | N25: =IF(data=1,IF((K36-sumproplat)>0,K36-sumproplat,0),IF(K36-(sumproplat-L36)>0,K36-(M36-L36),0)) -> 0 | O25: =IF(data=1,N25*(PROC/36500)*30.42,N25*(PROC/36000)*30) -> 0 | P25: =IF(data=1,IF(O25>0.0001,O25+sumproplat,0),IF(N25>sumproplat*2,sumproplat,N25+O25)) -> 0 | Q25: =IF(data=1,IF((N36-sumproplat)>0,N36-sumproplat,0),IF(N36-(sumproplat-O36)>0,N36-(P36-O36),0)) -> 0 | R25: =IF(data=1,Q25*(PROC/36500)*30.42,Q25*(PROC/36000)*30) -> 0 | S25: =IF(data=1,IF(R25>0.0001,R25+sumproplat,0),IF(Q25>sumproplat*2,sumproplat,Q25+R25)) -> 0 | T25: =IF(data=1,IF((Q36-sumproplat)>0,Q36-sumproplat,0),IF(Q36-(sumproplat-R36)>0,Q36-(S36-R36),0)) -> 0 | U25: =IF(data=1,T25*(PROC/36500)*30.42,T25*(PROC/36000)*30) -> 0 | V25: =IF(data=1,IF(U25>0.0001,U25+sumproplat,0),IF(T25>sumproplat*2,sumproplat,T25+U25)) -> 0
A26: 2.міс | B26: =IF(data=1,IF((B25-sumproplat)>0,B25-sumproplat,0),IF(B25-(sumproplat-C25)>0,B25-(D25-C25),0)) -> 3666666.667 | C26: 69154.8 | D26: =IF(data=1,IF(C26>0.001,C26+sumproplat,0),IF(B26>sumproplat*2,sumproplat,B26+C26)) -> 402488.1333 | E26: =IF(data=1,IF((E25-sumproplat)>0,E25-sumproplat,0),IF(E25-(sumproplat-F25)>0,E25-(G25-F25),0)) -> 0 | F26: 0 | G26: 0 | H26: =IF(data=1,IF((H25-sumproplat)>0,H25-sumproplat,0),IF(H25-(sumproplat-I25)>0,H25-(J25-I25),0)) -> 0 | I26: 0 | J26: 0 | K26: =IF(data=1,IF((K25-sumproplat)>0,K25-sumproplat,0),IF(K25-(sumproplat-L25)>0,K25-(M25-L25),0)) -> 0 | L26: 0 | M26: 0 | N26: =IF(data=1,IF((N25-sumproplat)>0,N25-sumproplat,0),IF(N25-(sumproplat-O25)>0,N25-(P25-O25),0)) -> 0 | O26: 0 | P26: 0 | Q26: =IF(data=1,IF((Q25-sumproplat)>0,Q25-sumproplat,0),IF(Q25-(sumproplat-R25)>0,Q25-(S25-R25),0)) -> 0 | R26: 0 | S26: 0 | T26: =IF(data=1,IF((T25-sumproplat)>0,T25-sumproplat,0),IF(T25-(sumproplat-U25)>0,T25-(V25-U25),0)) -> 0 | U26: 0 | V26: 0
A27: 3 міс. | B27: =IF(data=1,IF((B26-sumproplat)>0,B26-sumproplat,0),IF(B26-(sumproplat-C26)>0,B26-(D26-C26),0)) -> 3333333.333 | C27: 62868 | D27: 396201.3333 | E27: =IF(data=1,IF((E26-sumproplat)>0,E26-sumproplat,0),IF(E26-(sumproplat-F26)>0,E26-(G26-F26),0)) -> 0 | F27: 0 | G27: 0 | H27: =IF(data=1,IF((H26-sumproplat)>0,H26-sumproplat,0),IF(H26-(sumproplat-I26)>0,H26-(J26-I26),0)) -> 0 | I27: 0 | J27: 0 | K27: =IF(data=1,IF((K26-sumproplat)>0,K26-sumproplat,0),IF(K26-(sumproplat-L26)>0,K26-(M26-L26),0)) -> 0 | L27: 0 | M27: 0 | N27: =IF(data=1,IF((N26-sumproplat)>0,N26-sumproplat,0),IF(N26-(sumproplat-O26)>0,N26-(P26-O26),0)) -> 0 | O27: 0 | P27: 0 | Q27: =IF(data=1,IF((Q26-sumproplat)>0,Q26-sumproplat,0),IF(Q26-(sumproplat-R26)>0,Q26-(S26-R26),0)) -> 0 | R27: 0 | S27: 0 | T27: =IF(data=1,IF((T26-sumproplat)>0,T26-sumproplat,0),IF(T26-(sumproplat-U26)>0,T26-(V26-U26),0)) -> 0 | U27: 0 | V27: 0
A28: 4 міс. | B28: 3000000 | C28: 56581.2 | D28: 389914.5333 | E28: 0 | F28: 0 | G28: 0 | H28: 0 | I28: 0 | J28: 0 | K28: 0 | L28: 0 | M28: 0 | N28: 0 | O28: 0 | P28: 0 | Q28: 0 | R28: 0 | S28: 0 | T28: 0 | U28: 0 | V28: 0
A29: 5 міс | B29: 2666666.667 | C29: 50294.4 | D29: 383627.7333 | E29: 0 | F29: 0 | G29: 0 | H29: 0 | I29: 0 | J29: 0 | K29: 0 | L29: 0 | M29: 0 | N29: 0 | O29: 0 | P29: 0 | Q29: 0 | R29: 0 | S29: 0 | T29: 0 | U29: 0 | V29: 0
A30: 6 міс. | B30: 2333333.333 | C30: 44007.6 | D30: 377340.9333 | E30: 0 | F30: 0 | G30: 0 | H30: 0 | I30: 0 | J30: 0 | K30: 0 | L30: 0 | M30: 0 | N30: 0 | O30: 0 | P30: 0 | Q30: 0 | R30: 0 | S30: 0 | T30: 0 | U30: 0 | V30: 0
A31: 7 міс. | B31: 2000000 | C31: 37720.8 | D31: 371054.1333 | E31: 0 | F31: 0 | G31: 0 | H31: 0 | I31: 0 | J31: 0 | K31: 0 | L31: 0 | M31: 0 | N31: 0 | O31: 0 | P31: 0 | Q31: 0 | R31: 0 | S31: 0 | T31: 0 | U31: 0 | V31: 0
A32: 8 міс. | B32: 1666666.667 | C32: 31434 | D32: 364767.3333 | E32: 0 | F32: 0 | G32: 0 | H32: 0 | I32: 0 | J32: 0 | K32: 0 | L32: 0 | M32: 0 | N32: 0 | O32: 0 | P32: 0 | Q32: 0 | R32: 0 | S32: 0 | T32: 0 | U32: 0 | V32: 0
A33: 9 міс. | B33: 1333333.333 | C33: 25147.2 | D33: 358480.5333 | E33: 0 | F33: 0 | G33: 0 | H33: 0 | I33: 0 | J33: 0 | K33: 0 | L33: 0 | M33: 0 | N33: 0 | O33: 0 | P33: 0 | Q33: 0 | R33: 0 | S33: 0 | T33: 0 | U33: 0 | V33: 0
A34: 10 міс. | B34: 1000000 | C34: 18860.4 | D34: 352193.7333 | E34: 0 | F34: 0 | G34: 0 | H34: 0 | I34: 0 | J34: 0 | K34: 0 | L34: 0 | M34: 0 | N34: 0 | O34: 0 | P34: 0 | Q34: 0 | R34: 0 | S34: 0 | T34: 0 | U34: 0 | V34: 0
A35: 11 міс. | B35: 666666.6667 | C35: 12573.6 | D35: 345906.9333 | E35: 0 | F35: 0 | G35: 0 | H35: 0 | I35: 0 | J35: 0 | K35: 0 | L35: 0 | M35: 0 | N35: 0 | O35: 0 | P35: 0 | Q35: 0 | R35: 0 | S35: 0 | T35: 0 | U35: 0 | V35: 0
A36: 12 міс. | B36: 333333.3333 | C36: 6286.8 | D36: 339620.1333 | E36: 0 | F36: 0 | G36: 0 | H36: 0 | I36: 0 | J36: 0 | K36: 0 | L36: 0 | M36: 0 | N36: 0 | O36: 0 | P36: 0 | Q36: 0 | R36: 0 | S36: 0 | T36: 0 | U36: 0 | V36: 0
A37: Усього | C37: =SUM(C25:C36) -> 490370.4 | D37: =SUM(D25:D36) -> 4490370.4 | F37: =SUM(F25:F36) -> 0 | G37: =SUM(G25:G36) -> 0 | I37: =SUM(I25:I36) -> 0 | J37: =SUM(J25:J36) -> 0 | L37: =SUM(L25:L36) -> 0 | M37: =SUM(M25:M36) -> 0 | O37: =SUM(O25:O36) -> 0 | P37: =SUM(P25:P36) -> 0 | R37: =SUM(R25:R36) -> 0 | S37: =SUM(S25:S36) -> 0 | U37: =SUM(U25:U36) -> 0 | V37: =SUM(V25:V36) -> 0
A38: Місяць | B38: 8 - й рік | E38: 9 - й рік | H38: 10 - й рік | K38: 11 - й рік | N38: 12 - й рік | Q38: 13 - й рік | T38: 14 - й рік
B39: Залишок по кредиту | C39: Проценти до сплати | D39: Загальний платіж | E39: Залишок по кредиту | F39: Проценти до сплати | G39: Загальний платіж | H39: Залишок по кредиту | I39: Проценти до сплати | J39: Загальний платіж | K39: Залишок по кредиту | L39: Проценти до сплати | M39: Загальний платіж | N39: Залишок по кредиту | O39: Проценти до сплати | P39: Загальний платіж | Q39: Залишок по кредиту | R39: Проценти до сплати | S39: Загальний платіж | T39: Залишок по кредиту | U39: Проценти до сплати | V39: Загальний платіж
A40: 1 міс. | B40: =IF(data=1,IF((T36-sumproplat)>0,T36-sumproplat,0),IF(T36-(sumproplat-U36)>0,T36-(V36-U36),0)) -> 0 | C40: =IF(data=1,B40*(PROC/36500)*30.42,B40*(PROC/36000)*30) -> 0 | D40: =IF(data=1,IF(C40>0.0001,C40+sumproplat,0),IF(B40>sumproplat*2,sumproplat,B40+C40)) -> 0 | E40: =IF(data=1,IF((B51-sumproplat)>0,B51-sumproplat,0),IF(B51-(sumproplat-C51)>0,B51-(D51-C51),0)) -> 0 | F40: =IF(data=1,E40*(PROC/36500)*30.42,E40*(PROC/36000)*30) -> 0 | G40: =IF(data=1,IF(F40>0.0001,F40+sumproplat,0),IF(E40>sumproplat*2,sumproplat,E40+F40)) -> 0 | H40: =IF(data=1,IF((E51-sumproplat)>0,E51-sumproplat,0),IF(E51-(sumproplat-F51)>0,E51-(G51-F51),0)) -> 0 | I40: =IF(data=1,H40*(PROC/36500)*30.42,H40*(PROC/36000)*30) -> 0 | J40: =IF(data=1,IF(I40>0.0001,I40+sumproplat,0),IF(H40>sumproplat*2,sumproplat,H40+I40)) -> 0 | K40: =IF(data=1,IF((H51-sumproplat)>0,H51-sumproplat,0),IF(H51-(sumproplat-I51)>0,H51-(J51-I51),0)) -> 0 | L40: =IF(data=1,K40*(PROC/36500)*30.42,K40*(PROC/36000)*30) -> 0 | M40: =IF(data=1,IF(L40>0.0001,L40+sumproplat,0),IF(K40>sumproplat*2,sumproplat,K40+L40)) -> 0 | N40: =IF(data=1,IF((K51-sumproplat)>0,K51-sumproplat,0),IF(K51-(sumproplat-L51)>0,K51-(M51-L51),0)) -> 0 | O40: =IF(data=1,N40*(PROC/36500)*30.42,N40*(PROC/36000)*30) -> 0 | P40: =IF(data=1,IF(O40>0.0001,O40+sumproplat,0),IF(N40>sumproplat*2,sumproplat,N40+O40)) -> 0 | Q40: =IF(data=1,IF((N51-sumproplat)>0,N51-sumproplat,0),IF(N51-(sumproplat-O51)>0,N51-(P51-O51),0)) -> 0 | R40: =IF(data=1,Q40*(PROC/36500)*30.42,Q40*(PROC/36000)*30) -> 0 | S40: =IF(data=1,IF(R40>0.0001,R40+sumproplat,0),IF(Q40>sumproplat*2,sumproplat,Q40+R40)) -> 0 | T40: =IF(data=1,IF((Q51-sumproplat)>0,Q51-sumproplat,0),IF(Q51-(sumproplat-R51)>0,Q51-(S51-R51),0)) -> 0 | U40: =IF(data=1,T40*(PROC/36500)*30.42,T40*(PROC/36000)*30) -> 0 | V40: =IF(data=1,IF(U40>0.0001,U40+sumproplat,0),IF(T40>sumproplat*2,sumproplat,T40+U40)) -> 0
A41: 2.міс | B41: =IF(data=1,IF((B40-sumproplat)>0,B40-sumproplat,0),IF(B40-(sumproplat-C40)>0,B40-(D40-C40),0)) -> 0 | C41: 0 | D41: 0 | E41: =IF(data=1,IF((E40-sumproplat)>0,E40-sumproplat,0),IF(E40-(sumproplat-F40)>0,E40-(G40-F40),0)) -> 0 | F41: 0 | G41: 0 | H41: =IF(data=1,IF((H40-sumproplat)>0,H40-sumproplat,0),IF(H40-(sumproplat-I40)>0,H40-(J40-I40),0)) -> 0 | I41: 0 | J41: 0 | K41: =IF(data=1,IF((K40-sumproplat)>0,K40-sumproplat,0),IF(K40-(sumproplat-L40)>0,K40-(M40-L40),0)) -> 0 | L41: 0 | M41: 0 | N41: =IF(data=1,IF((N40-sumproplat)>0,N40-sumproplat,0),IF(N40-(sumproplat-O40)>0,N40-(P40-O40),0)) -> 0 | O41: 0 | P41: 0 | Q41: =IF(data=1,IF((Q40-sumproplat)>0,Q40-sumproplat,0),IF(Q40-(sumproplat-R40)>0,Q40-(S40-R40),0)) -> 0 | R41: 0 | S41: 0 | T41: =IF(data=1,IF((T40-sumproplat)>0,T40-sumproplat,0),IF(T40-(sumproplat-U40)>0,T40-(V40-U40),0)) -> 0 | U41: 0 | V41: 0
A42: 3 міс. | B42: =IF(data=1,IF((B41-sumproplat)>0,B41-sumproplat,0),IF(B41-(sumproplat-C41)>0,B41-(D41-C41),0)) -> 0 | C42: 0 | D42: 0 | E42: =IF(data=1,IF((E41-sumproplat)>0,E41-sumproplat,0),IF(E41-(sumproplat-F41)>0,E41-(G41-F41),0)) -> 0 | F42: 0 | G42: 0 | H42: =IF(data=1,IF((H41-sumproplat)>0,H41-sumproplat,0),IF(H41-(sumproplat-I41)>0,H41-(J41-I41),0)) -> 0 | I42: 0 | J42: 0 | K42: =IF(data=1,IF((K41-sumproplat)>0,K41-sumproplat,0),IF(K41-(sumproplat-L41)>0,K41-(M41-L41),0)) -> 0 | L42: 0 | M42: 0 | N42: =IF(data=1,IF((N41-sumproplat)>0,N41-sumproplat,0),IF(N41-(sumproplat-O41)>0,N41-(P41-O41),0)) -> 0 | O42: 0 | P42: 0 | Q42: =IF(data=1,IF((Q41-sumproplat)>0,Q41-sumproplat,0),IF(Q41-(sumproplat-R41)>0,Q41-(S41-R41),0)) -> 0 | R42: 0 | S42: 0 | T42: =IF(data=1,IF((T41-sumproplat)>0,T41-sumproplat,0),IF(T41-(sumproplat-U41)>0,T41-(V41-U41),0)) -> 0 | U42: 0 | V42: 0
A43: 2 міс. | B43: 0 | C43: 0 | D43: 0 | E43: 0 | F43: 0 | G43: 0 | H43: 0 | I43: 0 | J43: 0 | K43: 0 | L43: 0 | M43: 0 | N43: 0 | O43: 0 | P43: 0 | Q43: 0 | R43: 0 | S43: 0 | T43: 0 | U43: 0 | V43: 0
A44: 2.міс | B44: 0 | C44: 0 | D44: 0 | E44: 0 | F44: 0 | G44: 0 | H44: 0 | I44: 0 | J44: 0 | K44: 0 | L44: 0 | M44: 0 | N44: 0 | O44: 0 | P44: 0 | Q44: 0 | R44: 0 | S44: 0 | T44: 0 | U44: 0 | V44: 0
A45: 4 міс. | B45: 0 | C45: 0 | D45: 0 | E45: 0 | F45: 0 | G45: 0 | H45: 0 | I45: 0 | J45: 0 | K45: 0 | L45: 0 | M45: 0 | N45: 0 | O45: 0 | P45: 0 | Q45: 0 | R45: 0 | S45: 0 | T45: 0 | U45: 0 | V45: 0
A46: 3 міс. | B46: 0 | C46: 0 | D46: 0 | E46: 0 | F46: 0 | G46: 0 | H46: 0 | I46: 0 | J46: 0 | K46: 0 | L46: 0 | M46: 0 | N46: 0 | O46: 0 | P46: 0 | Q46: 0 | R46: 0 | S46: 0 | T46: 0 | U46: 0 | V46: 0
A47: 2.міс | B47: 0 | C47: 0 | D47: 0 | E47: 0 | F47: 0 | G47: 0 | H47: 0 | I47: 0 | J47: 0 | K47: 0 | L47: 0 | M47: 0 | N47: 0 | O47: 0 | P47: 0 | Q47: 0 | R47: 0 | S47: 0 | T47: 0 | U47: 0 | V47: 0
A48: 5 міс. | B48: 0 | C48: 0 | D48: 0 | E48: 0 | F48: 0 | G48: 0 | H48: 0 | I48: 0 | J48: 0 | K48: 0 | L48: 0 | M48: 0 | N48: 0 | O48: 0 | P48: 0 | Q48: 0 | R48: 0 | S48: 0 | T48: 0 | U48: 0 | V48: 0
A49: 4 міс. | B49: 0 | C49: 0 | D49: 0 | E49: 0 | F49: 0 | G49: 0 | H49: 0 | I49: 0 | J49: 0 | K49: 0 | L49: 0 | M49: 0 | N49: 0 | O49: 0 | P49: 0 | Q49: 0 | R49: 0 | S49: 0 | T49: 0 | U49: 0 | V49: 0
A50: 2.міс | B50: 0 | C50: 0 | D50: 0 | E50: 0 | F50: 0 | G50: 0 | H50: 0 | I50: 0 | J50: 0 | K50: 0 | L50: 0 | M50: 0 | N50: 0 | O50: 0 | P50: 0 | Q50: 0 | R50: 0 | S50: 0 | T50: 0 | U50: 0 | V50: 0
A51: 6 міс. | B51: 0 | C51: 0 | D51: 0 | E51: 0 | F51: 0 | G51: 0 | H51: 0 | I51: 0 | J51: 0 | K51: 0 | L51: 0 | M51: 0 | N51: 0 | O51: 0 | P51: 0 | Q51: 0 | R51: 0 | S51: 0 | T51: 0 | U51: 0 | V51: 0
A52: Усього | C52: =SUM(C40:C51) -> 0 | D52: =SUM(D40:D51) -> 0 | F52: =SUM(F40:F51) -> 0 | G52: =SUM(G40:G51) -> 0 | I52: =SUM(I40:I51) -> 0 | J52: =SUM(J40:J51) -> 0 | L52: =SUM(L40:L51) -> 0 | M52: =SUM(M40:M51) -> 0 | O52: =SUM(O40:O51) -> 0 | P52: =SUM(P40:P51) -> 0 | R52: =SUM(R40:R51) -> 0 | S52: =SUM(S40:S51) -> 0 | U52: =SUM(U40:U51) -> 0 | V52: =SUM(V40:V51) -> 0
A53: Місяць | B53: 15 - й рік | E53: 16 - й рік | H53: 17 - й рік | K53: 18 - й рік | N53: 19 - й рік | Q53: 20 - й рік | T53: 21 - й рік
B54: Залишок по кредиту | C54: Проценти до сплати | D54: Загальний платіж | E54: Залишок по кредиту | F54: Проценти до сплати | G54: Загальний платіж | H54: Залишок по кредиту | I54: Проценти до сплати | J54: Загальний платіж | K54: Залишок по кредиту | L54: Проценти до сплати | M54: Загальний платіж | N54: Залишок по кредиту | O54: Проценти до сплати | P54: Загальний платіж | Q54: Залишок по кредиту | R54: Проценти до сплати | S54: Загальний платіж | T54: Залишок по кредиту | U54: Проценти до сплати | V54: Загальний платіж
A55: 1 міс. | B55: =IF(data=1,IF((T51-sumproplat)>0,T51-sumproplat,0),IF(T51-(sumproplat-U51)>0,T51-(V51-U51),0)) -> 0 | C55: =IF(data=1,B55*(PROC/36500)*30.42,B55*(PROC/36000)*30) -> 0 | D55: =IF(data=1,IF(C55>0.0001,C55+sumproplat,0),IF(B55>sumproplat*2,sumproplat,B55+C55)) -> 0 | E55: =IF(data=1,IF((B66-sumproplat)>0,B66-sumproplat,0),IF(B66-(sumproplat-C66)>0,B66-(D66-C66),0)) -> 0 | F55: =IF(data=1,E55*(PROC/36500)*30.42,E55*(PROC/36000)*30) -> 0 | G55: =IF(data=1,IF(F55>0.0001,F55+sumproplat,0),IF(E55>sumproplat*2,sumproplat,E55+F55)) -> 0 | H55: =IF(data=1,IF((E66-sumproplat)>0,E66-sumproplat,0),IF(E66-(sumproplat-F66)>0,E66-(G66-F66),0)) -> 0 | I55: =IF(data=1,H55*(PROC/36500)*30.42,H55*(PROC/36000)*30) -> 0 | J55: =IF(data=1,IF(I55>0.0001,I55+sumproplat,0),IF(H55>sumproplat*2,sumproplat,H55+I55)) -> 0 | K55: =IF(data=1,IF((H66-sumproplat)>0,H66-sumproplat,0),IF(H66-(sumproplat-I66)>0,H66-(J66-I66),0)) -> 0 | L55: =IF(data=1,K55*(PROC/36500)*30.42,K55*(PROC/36000)*30) -> 0 | M55: =IF(data=1,IF(L55>0.0001,L55+sumproplat,0),IF(K55>sumproplat*2,sumproplat,K55+L55)) -> 0 | N55: =IF(data=1,IF((K66-sumproplat)>0,K66-sumproplat,0),IF(K66-(sumproplat-L66)>0,K66-(M66-L66),0)) -> 0 | O55: =IF(data=1,N55*(PROC/36500)*30.42,N55*(PROC/36000)*30) -> 0 | P55: =IF(data=1,IF(O55>0.0001,O55+sumproplat,0),IF(N55>sumproplat*2,sumproplat,N55+O55)) -> 0 | Q55: =IF(data=1,IF((N66-sumproplat)>0,N66-sumproplat,0),IF(N66-(sumproplat-O66)>0,N66-(P66-O66),0)) -> 0 | R55: =IF(data=1,Q55*(PROC/36500)*30.42,Q55*(PROC/36000)*30) -> 0 | S55: =IF(data=1,IF(R55>0.0001,R55+sumproplat,0),IF(Q55>sumproplat*2,sumproplat,Q55+R55)) -> 0 | T55: =IF(data=1,IF((Q66-sumproplat)>0,Q66-sumproplat,0),IF(Q66-(sumproplat-R66)>0,Q66-(S66-R66),0)) -> 0 | U55: =IF(data=1,T55*(PROC/36500)*30.42,T55*(PROC/36000)*30) -> 0 | V55: =IF(data=1,IF(U55>0.0001,U55+sumproplat,0),IF(T55>sumproplat*2,sumproplat,T55+U55)) -> 0
A56: 2.міс | B56: =IF(data=1,IF((B55-sumproplat)>0,B55-sumproplat,0),IF(B55-(sumproplat-C55)>0,B55-(D55-C55),0)) -> 0 | C56: 0 | D56: 0 | E56: =IF(data=1,IF((E55-sumproplat)>0,E55-sumproplat,0),IF(E55-(sumproplat-F55)>0,E55-(G55-F55),0)) -> 0 | F56: 0 | G56: 0 | H56: =IF(data=1,IF((H55-sumproplat)>0,H55-sumproplat,0),IF(H55-(sumproplat-I55)>0,H55-(J55-I55),0)) -> 0 | I56: 0 | J56: 0 | K56: =IF(data=1,IF((K55-sumproplat)>0,K55-sumproplat,0),IF(K55-(sumproplat-L55)>0,K55-(M55-L55),0)) -> 0 | L56: 0 | M56: 0 | N56: =IF(data=1,IF((N55-sumproplat)>0,N55-sumproplat,0),IF(N55-(sumproplat-O55)>0,N55-(P55-O55),0)) -> 0 | O56: 0 | P56: 0 | Q56: =IF(data=1,IF((Q55-sumproplat)>0,Q55-sumproplat,0),IF(Q55-(sumproplat-R55)>0,Q55-(S55-R55),0)) -> 0 | R56: 0 | S56: 0 | T56: =IF(data=1,IF((T55-sumproplat)>0,T55-sumproplat,0),IF(T55-(sumproplat-U55)>0,T55-(V55-U55),0)) -> 0 | U56: 0 | V56: 0
A57: 3 міс. | B57: =IF(data=1,IF((B56-sumproplat)>0,B56-sumproplat,0),IF(B56-(sumproplat-C56)>0,B56-(D56-C56),0)) -> 0 | C57: 0 | D57: 0 | E57: =IF(data=1,IF((E56-sumproplat)>0,E56-sumproplat,0),IF(E56-(sumproplat-F56)>0,E56-(G56-F56),0)) -> 0 | F57: 0 | G57: 0 | H57: =IF(data=1,IF((H56-sumproplat)>0,H56-sumproplat,0),IF(H56-(sumproplat-I56)>0,H56-(J56-I56),0)) -> 0 | I57: 0 | J57: 0 | K57: =IF(data=1,IF((K56-sumproplat)>0,K56-sumproplat,0),IF(K56-(sumproplat-L56)>0,K56-(M56-L56),0)) -> 0 | L57: 0 | M57: 0 | N57: =IF(data=1,IF((N56-sumproplat)>0,N56-sumproplat,0),IF(N56-(sumproplat-O56)>0,N56-(P56-O56),0)) -> 0 | O57: 0 | P57: 0 | Q57: =IF(data=1,IF((Q56-sumproplat)>0,Q56-sumproplat,0),IF(Q56-(sumproplat-R56)>0,Q56-(S56-R56),0)) -> 0 | R57: 0 | S57: 0 | T57: =IF(data=1,IF((T56-sumproplat)>0,T56-sumproplat,0),IF(T56-(sumproplat-U56)>0,T56-(V56-U56),0)) -> 0 | U57: 0 | V57: 0
A58: 2 міс. | B58: 0 | C58: 0 | D58: 0 | E58: 0 | F58: 0 | G58: 0 | H58: 0 | I58: 0 | J58: 0 | K58: 0 | L58: 0 | M58: 0 | N58: 0 | O58: 0 | P58: 0 | Q58: 0 | R58: 0 | S58: 0 | T58: 0 | U58: 0 | V58: 0
A59: 2.міс | B59: 0 | C59: 0 | D59: 0 | E59: 0 | F59: 0 | G59: 0 | H59: 0 | I59: 0 | J59: 0 | K59: 0 | L59: 0 | M59: 0 | N59: 0 | O59: 0 | P59: 0 | Q59: 0 | R59: 0 | S59: 0 | T59: 0 | U59: 0 | V59: 0
A60: 4 міс. | B60: 0 | C60: 0 | D60: 0 | E60: 0 | F60: 0 | G60: 0 | H60: 0 | I60: 0 | J60: 0 | K60: 0 | L60: 0 | M60: 0 | N60: 0 | O60: 0 | P60: 0 | Q60: 0 | R60: 0 | S60: 0 | T60: 0 | U60: 0 | V60: 0
A61: 3 міс. | B61: 0 | C61: 0 | D61: 0 | E61: 0 | F61: 0 | G61: 0 | H61: 0 | I61: 0 | J61: 0 | K61: 0 | L61: 0 | M61: 0 | N61: 0 | O61: 0 | P61: 0 | Q61: 0 | R61: 0 | S61: 0 | T61: 0 | U61: 0 | V61: 0
A62: 2.міс | B62: 0 | C62: 0 | D62: 0 | E62: 0 | F62: 0 | G62: 0 | H62: 0 | I62: 0 | J62: 0 | K62: 0 | L62: 0 | M62: 0 | N62: 0 | O62: 0 | P62: 0 | Q62: 0 | R62: 0 | S62: 0 | T62: 0 | U62: 0 | V62: 0
A63: 5 міс. | B63: 0 | C63: 0 | D63: 0 | E63: 0 | F63: 0 | G63: 0 | H63: 0 | I63: 0 | J63: 0 | K63: 0 | L63: 0 | M63: 0 | N63: 0 | O63: 0 | P63: 0 | Q63: 0 | R63: 0 | S63: 0 | T63: 0 | U63: 0 | V63: 0
A64: 4 міс. | B64: 0 | C64: 0 | D64: 0 | E64: 0 | F64: 0 | G64: 0 | H64: 0 | I64: 0 | J64: 0 | K64: 0 | L64: 0 | M64: 0 | N64: 0 | O64: 0 | P64: 0 | Q64: 0 | R64: 0 | S64: 0 | T64: 0 | U64: 0 | V64: 0
A65: 2.міс | B65: 0 | C65: 0 | D65: 0 | E65: 0 | F65: 0 | G65: 0 | H65: 0 | I65: 0 | J65: 0 | K65: 0 | L65: 0 | M65: 0 | N65: 0 | O65: 0 | P65: 0 | Q65: 0 | R65: 0 | S65: 0 | T65: 0 | U65: 0 | V65: 0
A66: 6 міс. | B66: 0 | C66: 0 | D66: 0 | E66: 0 | F66: 0 | G66: 0 | H66: 0 | I66: 0 | J66: 0 | K66: 0 | L66: 0 | M66: 0 | N66: 0 | O66: 0 | P66: 0 | Q66: =IF(data=1,IF((Q65-sumproplat)>0,Q65-sumproplat,0),IF(Q65-(sumproplat-R65)>0,Q65-(S65-R65),0)) -> 0 | R66: 0 | S66: 0 | T66: 0 | U66: 0 | V66: 0
A67: Усього | C67: =SUM(C55:C66) -> 0 | D67: =SUM(D55:D66) -> 0 | F67: =SUM(F55:F66) -> 0 | G67: =SUM(G55:G66) -> 0 | I67: =SUM(I55:I66) -> 0 | J67: =SUM(J55:J66) -> 0 | L67: =SUM(L55:L66) -> 0 | M67: =SUM(M55:M66) -> 0 | O67: =SUM(O55:O66) -> 0 | P67: =SUM(P55:P66) -> 0 | R67: =SUM(R55:R66) -> 0 | S67: =SUM(S55:S66) -> 0 | U67: =SUM(U55:U66) -> 0 | V67: =SUM(V55:V66) -> 0
A69: Загальні витрати за кредитом (платежі за додаткові та супутні послуги кредитодавця, пов'язані з отриманням, обслуговуванням та поверненням кредиту), грн. | I69: =sumkred*H16+H17+sumkred*H18+C37+F37+I37+L37+O37+R37+U37+C52+F52+I52+L52+O52+R52+U52+C67+F67+I67+L67+O67+R67+U67+H20 -> 519220.4
A70: Орієнтовна загальна вартість кредиту для споживача за весь строк користування кредитом (у т.ч. тіло кредиту, відсотки, комісії та інші платежі), грн. | I70: =sumkred*H16+H17+sumkred*H18+D37+G37+J37+M37+P37+S37+V37+D52+G52+J52+M52+P52+S52+V52+D67+G67+J67+M67+P67+S67+V67+H20 -> 4519220.4
A71: Реальна річна процентна ставка, % річних | I71: =XIRR(C81:C321,B81:B321) -> 0.2681491315
A72: Застереження: наведені обчислення реальної річної процентної ставки та орієнтовної загальної вартості кредиту для споживача є репрезентативними та базуються на обраних споживачем умовах кредитування, викладених вище, і на припущенні, що договір про споживчий кредит залишатиметься дійсним протягом погодженого строку, а кредитодавець і споживач виконають свої обов’язки на умовах та у строки, визначені в договорі.
A73: Реальна річна процентна ставка обчислена на основі припущення, що процентна ставка та інші платежі за послуги кредитодавця залишатимуться незмінними та застосовуватимуться протягом строку дії договору про споживчий кредит. Реальна річна процентна ставка обчислена з використанням фінансової функції ЧИСТВНДОХ програмного продукту Microsoft Excel.
A74: Застереження: використання інших способів надання кредиту та/або зміна інших вищезазначених умов кредитування можуть мати наслідком застосування іншої реальної річної процентної ставки та орієнтовної загальної вартості кредиту для споживача.
A76: Дата надання інформації: | C76: =TODAY() -> 2025-07-14
A78: Підпис споживача:
C79: ПІБ, підпис.
B81: =TODAY() -> 2025-07-14 | C81: =-sumkred+sumkred*H16+H17+sumkred*H18+H20 -> -3971150
A82: 1 | B82: =EDATE(B81,1) -> 2025-08-14 | C82: =D25 -> 408774.9333 | D82: =C82-C83 -> 6286.8
A83: 2 | B83: =EDATE(B82,1) -> 2025-09-14 | C83: 402488.1333 | D83: =C83-C84 -> 6286.8
A84: 3 | B84: =EDATE(B83,1) -> 2025-10-14 | C84: 396201.3333 | D84: 6286.8
A85: 4 | B85: 2025-11-14 | C85: 389914.5333 | D85: 6286.8
A86: 5 | B86: 2025-12-14 | C86: 383627.7333 | D86: 6286.8
A87: 6 | B87: 2026-01-14 | C87: 377340.9333 | D87: 6286.8
A88: 7 | B88: 2026-02-14 | C88: 371054.1333 | D88: 6286.8
A89: 8 | B89: 2026-03-14 | C89: 364767.3333 | D89: 6286.8
A90: 9 | B90: 2026-04-14 | C90: 358480.5333 | D90: 6286.8
A91: 10 | B91: 2026-05-14 | C91: 352193.7333 | D91: 6286.8
A92: 11 | B92: 2026-06-14 | C92: 345906.9333 | D92: 6286.8
A93: 12 | B93: 2026-07-14 | C93: 339620.1333 | D93: 339620.1333
A94: 13 | B94: 2026-08-14 | C94: =G25 -> 0 | D94: 0
A95: 14 | B95: 2026-09-14 | C95: 0 | D95: 0
A96: 15 | B96: 2026-10-14 | C96: 0 | D96: 0
A97: 16 | B97: 2026-11-14 | C97: 0 | D97: 0
A98: 17 | B98: 2026-12-14 | C98: 0 | D98: 0
A99: 18 | B99: 2027-01-14 | C99: 0 | D99: 0
A100: 19 | B100: 2027-02-14 | C100: 0 | D100: 0
A101: 20 | B101: 2027-03-14 | C101: 0 | D101: 0
A102: 21 | B102: 2027-04-14 | C102: 0 | D102: 0
A103: 22 | B103: 2027-05-14 | C103: 0 | D103: 0
A104: 23 | B104: 2027-06-14 | C104: 0 | D104: 0
A105: 24 | B105: 2027-07-14 | C105: 0 | D105: 0
A106: 25 | B106: 2027-08-14 | C106: =J25 -> 0 | D106: 0
A107: 26 | B107: 2027-09-14 | C107: 0 | D107: 0
A108: 27 | B108: 2027-10-14 | C108: 0 | D108: 0
A109: 28 | B109: 2027-11-14 | C109: 0 | D109: 0
A110: 29 | B110: 2027-12-14 | C110: 0 | D110: 0
A111: 30 | B111: 2028-01-14 | C111: 0 | D111: 0
A112: 31 | B112: 2028-02-14 | C112: 0 | D112: 0
A113: 32 | B113: 2028-03-14 | C113: 0 | D113: 0
A114: 33 | B114: 2028-04-14 | C114: 0 | D114: 0
A115: 34 | B115: 2028-05-14 | C115: 0 | D115: 0
A116: 35 | B116: 2028-06-14 | C116: 0 | D116: 0
A117: 36 | B117: 2028-07-14 | C117: 0 | D117: 0
A118: 37 | B118: 2028-08-14 | C118: =M25 -> 0 | D118: 0
A119: 38 | B119: 2028-09-14 | C119: 0 | D119: 0
A120: 39 | B120: 2028-10-14 | C120: 0 | D120: 0
A121: 40 | B121: 2028-11-14 | C121: 0 | D121: 0
A122: 41 | B122: 2028-12-14 | C122: 0 | D122: 0
A123: 42 | B123: 2029-01-14 | C123: 0 | D123: 0
A124: 43 | B124: 2029-02-14 | C124: 0 | D124: 0
A125: 44 | B125: 2029-03-14 | C125: 0 | D125: 0
A126: 45 | B126: 2029-04-14 | C126: 0 | D126: 0
A127: 46 | B127: 2029-05-14 | C127: 0 | D127: 0
A128: 47 | B128: 2029-06-14 | C128: 0 | D128: 0
A129: 48 | B129: 2029-07-14 | C129: 0 | D129: 0
A130: 49 | B130: 2029-08-14 | C130: =P25 -> 0 | D130: 0
A131: 50 | B131: 2029-09-14 | C131: 0 | D131: 0
A132: 51 | B132: 2029-10-14 | C132: 0 | D132: 0
A133: 52 | B133: 2029-11-14 | C133: 0 | D133: 0
A134: 53 | B134: 2029-12-14 | C134: 0 | D134: 0
A135: 54 | B135: 2030-01-14 | C135: 0 | D135: 0
A136: 55 | B136: 2030-02-14 | C136: 0 | D136: 0
A137: 56 | B137: 2030-03-14 | C137: 0 | D137: 0
A138: 57 | B138: 2030-04-14 | C138: 0 | D138: 0
A139: 58 | B139: 2030-05-14 | C139: 0 | D139: 0
A140: 59 | B140: 2030-06-14 | C140: 0 | D140: 0
A141: 60 | B141: 2030-07-14 | C141: 0 | D141: 0
A142: 61 | B142: 2030-08-14 | C142: =S25 -> 0 | D142: 0
A143: 62 | B143: 2030-09-14 | C143: 0 | D143: 0
A144: 63 | B144: 2030-10-14 | C144: 0 | D144: 0
A145: 64 | B145: 2030-11-14 | C145: 0 | D145: 0
A146: 65 | B146: 2030-12-14 | C146: 0 | D146: 0
A147: 66 | B147: 2031-01-14 | C147: 0 | D147: =C147-C148 -> 0
A148: 67 | B148: =EDATE(B147,1) -> 2031-02-14 | C148: 0 | D148: 0
A149: 68 | B149: 2031-03-14 | C149: 0 | D149: 0
A150: 69 | B150: 2031-04-14 | C150: 0 | D150: 0
A151: 70 | B151: 2031-05-14 | C151: 0 | D151: 0
A152: 71 | B152: 2031-06-14 | C152: 0 | D152: 0
A153: 72 | B153: 2031-07-14 | C153: 0 | D153: 0
A154: 73 | B154: 2031-08-14 | C154: =V25 -> 0 | D154: 0
A155: 74 | B155: 2031-09-14 | C155: 0 | D155: 0
A156: 75 | B156: 2031-10-14 | C156: 0 | D156: 0
A157: 76 | B157: 2031-11-14 | C157: 0 | D157: 0
A158: 77 | B158: 2031-12-14 | C158: 0 | D158: 0
A159: 78 | B159: 2032-01-14 | C159: 0 | D159: 0
A160: 79 | B160: 2032-02-14 | C160: 0 | D160: 0
A161: 80 | B161: 2032-03-14 | C161: 0 | D161: 0
A162: 81 | B162: 2032-04-14 | C162: 0 | D162: 0
A163: 82 | B163: 2032-05-14 | C163: 0 | D163: 0
A164: 83 | B164: 2032-06-14 | C164: 0 | D164: 0
A165: 84 | B165: 2032-07-14 | C165: 0 | D165: 0
A166: 85 | B166: 2032-08-14 | C166: =D40 -> 0 | D166: 0
A167: 86 | B167: 2032-09-14 | C167: 0 | D167: 0
A168: 87 | B168: 2032-10-14 | C168: 0 | D168: 0
A169: 88 | B169: 2032-11-14 | C169: 0 | D169: 0
A170: 89 | B170: 2032-12-14 | C170: 0 | D170: 0
A171: 90 | B171: 2033-01-14 | C171: 0 | D171: 0
A172: 91 | B172: 2033-02-14 | C172: 0 | D172: 0
A173: 92 | B173: 2033-03-14 | C173: 0 | D173: 0
A174: 93 | B174: 2033-04-14 | C174: 0 | D174: 0
A175: 94 | B175: 2033-05-14 | C175: 0 | D175: 0
A176: 95 | B176: 2033-06-14 | C176: 0 | D176: 0
A177: 96 | B177: 2033-07-14 | C177: 0 | D177: 0
A178: 97 | B178: 2033-08-14 | C178: =G40 -> 0 | D178: 0
A179: 98 | B179: 2033-09-14 | C179: 0 | D179: 0
A180: 99 | B180: 2033-10-14 | C180: 0 | D180: 0
A181: 100 | B181: 2033-11-14 | C181: 0 | D181: 0
A182: 101 | B182: 2033-12-14 | C182: 0 | D182: 0
A183: 102 | B183: 2034-01-14 | C183: 0 | D183: 0
A184: 103 | B184: 2034-02-14 | C184: 0 | D184: 0
A185: 104 | B185: 2034-03-14 | C185: 0 | D185: 0
A186: 105 | B186: 2034-04-14 | C186: 0 | D186: 0
A187: 106 | B187: 2034-05-14 | C187: 0 | D187: 0
A188: 107 | B188: 2034-06-14 | C188: 0 | D188: 0
A189: 108 | B189: 2034-07-14 | C189: 0 | D189: 0
A190: 109 | B190: 2034-08-14 | C190: =J40 -> 0 | D190: 0
A191: 110 | B191: 2034-09-14 | C191: 0 | D191: 0
A192: 111 | B192: 2034-10-14 | C192: 0 | D192: 0
A193: 112 | B193: 2034-11-14 | C193: 0 | D193: 0
A194: 113 | B194: 2034-12-14 | C194: 0 | D194: 0
A195: 114 | B195: 2035-01-14 | C195: 0 | D195: 0
A196: 115 | B196: 2035-02-14 | C196: 0 | D196: 0
A197: 116 | B197: 2035-03-14 | C197: 0 | D197: 0
A198: 117 | B198: 2035-04-14 | C198: 0 | D198: 0
A199: 118 | B199: 2035-05-14 | C199: 0 | D199: 0
A200: 119 | B200: 2035-06-14 | C200: 0 | D200: 0
A201: 120 | B201: 2035-07-14 | C201: 0 | D201: 0
A202: 121 | B202: 2035-08-14 | C202: =M40 -> 0 | D202: 0
A203: 122 | B203: 2035-09-14 | C203: 0 | D203: 0
A204: 123 | B204: 2035-10-14 | C204: 0 | D204: 0
A205: 124 | B205: 2035-11-14 | C205: 0 | D205: 0
A206: 125 | B206: 2035-12-14 | C206: 0 | D206: 0
A207: 126 | B207: 2036-01-14 | C207: 0 | D207: 0
... 114 more rows

Sheet Калькулятор (класика)
A1: Додаток 6.1. до протоколу Кредитної Ради АБ "УКРГАЗБАНК" від 14.01.2020 №9/5
A2: ТИПОВА ФОРМА | AD2: 0.5
A3: Калькулятор за програмою "Кредит під депозит" | AD3: 0.7
A4: Обрані споживачем умови кредитування | AD4: 1
A5: Значення у цій колонці зазначається департаментом роздрібного банкінгу згідно умов програми/продукту кредитування та можуть корегуватися (додаватися або вилучатися ) | J5: Значення у цій колонці зазначається підрозділом Банку, до якого звернувся споживач
A6: Вартість забезпечення, грн. | J6: 633505
A7: Власний платіж (внесок), % | J7: 0.3 | AG7: Класика | AH7: Есть
A8: Сума кредиту, грн. | J8: 1000000 | AG8: в кінці | AH8: Нет
A9: на придбання АВТО | J9: 100000
A10: оплату Комісії за надання кредиту | J10: =J9*J20 -> 0
A11: оплату страхового платежу за перший рік страхування за договором страхування життя або від нещасного випадку | J11: 0
A12: оплату страхового платежу за перший рік страхування за договором страхування транспортного засобу (КАСКО) | J12: 0
A13: Строк кредитування, міс. | J13: 12 | AD13: 0.01
A14: Процентна ставка (номінальна), % річних | J14: 16.76 | K14: 1 | AD14: 0.007
A15: Схема погашення кредиту | J15: 1 | AD15: 0.005
A16: =CONCATENATE("Месячный платеж по кредиту, ",O33) -> Месячный платеж по кредиту, | J16: =IF(data2=1,sumkred2/strok2,sumkred2*PROC2/100/((1-POWER(1+PROC2/1200,-strok2))*12)) -> 83333.33333
A17: Комісія за надання кредиту | J17: 0
A18: Відкриття поточного рахунку, грн. | J18: 0
A19: Переказ/видача коштів з поточного рахунку споживача за тарифним планом "Приватний", % від суми переказу (суми кредиту) | J19: 0.005
A20: Платежі за супровідні послуги кредитодавця, обов'язкові для укладання договору (оплачується в грн.):
A21: ='[1]Додаток до Паспорту'!$A$17 -> Комісія за внесення запису про реєстрацію обтяження предмету застави в ДРОРМ, з ПДВ | J21: 2700
A22: Відкриття поточного рахунку, операції за яким здійснюються з використанням електронних платіжних засобів ("ЕКО-кредитка") | J22: окремо плата не стягується
A23: Послуги нотаріуса | J23: 0
A24: Державне мито за посвідчення договору іпотеки | J24: 0
A25: Страхування предмету забезпечення | J25: 0
A26: Страхування особисто Позичальника | J26: 0
A27: Оцінка предмету забезпечення СОД | J27: 0
A28: Вартiсть послуг нотарiуса щодо державної реєстрацiї припинення iпотеки в ДРРП | J28: 0
A30: Платежі за супровідні послуги третіх осіб, обов'язкові для укладення договору/отримання, обслуговування та повернення кредиту (оплачуються у грн.) | J30: 0
A31: … | J31: 0
A33: 2 | AB33: грн.
A34: Місяць | B34: 1 - й рік | I34: заповнюється Клієнтом виходячи з обраних умов кредитування
B35: Залишок по кредиту | C35: Проценти до сплати | D35: Додаткові платежі на користь Банку/третіх осіб | E35: Загальний платіж
A36: 1 міс. | B36: =sumkred2 -> 1000000 | C36: =IF(data2=1,B36*(PROC2/36500)*30.42,B36*(PROC2/36000)*30) -> 13968.19726 | D36: =IF($A36="1 міс.",$J$25*$J$6+$J$26*B36,0)+$J$17*sumkred2+$J$18+$J$19*sumkred2+$J$23+$J$27+J24*J6+J21 -> 7700 | E36: =IF(data2=2,C36+D36,IF(data2=1,IF(C36>0,C36+D36+sumproplat2,0),IF(B36>sumproplat2*2,sumproplat2,B36+C36+D36))) -> 105001.5306
A37: 2.міс | B37: =IF(data2=1,IF((B36-sumproplat2)>1,B36-sumproplat2,0),IF(B36-(sumproplat2-C36-D36)>0,B36-(E36-C36-D36),0)) -> 916666.6667 | C37: 12804.18082 | D37: =IF($A37="1 міс.",$J$25*$J$6+$J$26*B37,0)+IF(B37-IF(data2=1,IF(C37>0.001,C37+sumproplat2,0),IF(B37>sumproplat2*2,sumproplat2,B37+C37))<0,$J$28,0) -> 0 | E37: =IF(data2=1,IF(C37>0.001,C37+D37+sumproplat2,0),IF(B37>sumproplat2*2,sumproplat2+D37,B37+C37+D37)) -> 96137.51416
A38: 3 міс. | B38: 833333.3333 | C38: 11640.16438 | D38: =IF($A38="1 міс.",$J$25*$J$6+$J$26*B38,0)+IF(B38-IF(data2=1,IF(C38>0.001,C38+sumproplat2,0),IF(B38>sumproplat2*2,sumproplat2,B38+C38))<0,$J$28,0) -> 0 | E38: 94973.49772
A39: 4. міс. | B39: 750000 | C39: 10476.14795 | D39: 0 | E39: 93809.48128
A40: 5.міс | B40: 666666.6667 | C40: 9312.131507 | D40: 0 | E40: 92645.46484
A41: 6.міс. | B41: 583333.3333 | C41: 8148.115068 | D41: 0 | E41: 91481.4484
A42: 7.міс. | B42: 500000 | C42: 6984.09863 | D42: 0 | E42: 90317.43196
A43: 8.міс | B43: 416666.6667 | C43: 5820.082192 | D43: 0 | E43: 89153.41553
A44: 9.міс. | B44: 333333.3333 | C44: 4656.065753 | D44: 0 | E44: 87989.39909
A45: 10.міс. | B45: 250000 | C45: 3492.049315 | D45: 0 | E45: 86825.38265
A46: 11.міс | B46: 166666.6667 | C46: 2328.032877 | D46: 0 | E46: 85661.36621
A47: 12 міс. | B47: 83333.33333 | C47: 1164.016438 | D47: 0 | E47: 84497.34977
A48: Усього | C48: =SUM(C36:C47) -> 90793.28219 | D48: =SUM(D36:D47) -> 7700 | E48: =SUM(E36:E47) -> 1098493.282
A49: Місяць | B49: 8 - й рік
B50: Залишок по кредиту | C50: Проценти до сплати | D50: Додаткові платежі на користь Банку/третіх осіб | E50: Загальний платіж
A51: 1 міс. | B51: =IF(data2=1,IF((Z47-sumproplat2)>1,Z47-sumproplat2,0),IF(Z47-(sumproplat2-AA47-AB47)>0,Z47-(AC47-AA47-AB47),0)) -> 0 | C51: =IF(data2=1,B51*(PROC2/36500)*30.42,B51*(PROC2/36000)*30) -> 0 | D51: =IF(AND($A51="1 міс.",B51>0),$J$25*$J$6+$J$26*B51,0)+IF(B51-IF(data2=1,IF(C51>0.001,C51+sumproplat2,0),IF(B51>sumproplat2*2,sumproplat2,B51+C51))<0,$J$28,0) -> 0 | E51: =IF(data2=1,IF(C51>0.001,C51+D51+sumproplat2,0),IF(B51>sumproplat2*2,sumproplat2+D51,B51+C51+D51)) -> 0
A52: 2.міс | B52: =IF(data2=1,IF((B51-sumproplat2)>1,B51-sumproplat2,0),IF(B51-(sumproplat2-C51-D51)>0,B51-(E51-C51-D51),0)) -> 0 | C52: 0 | D52: 0 | E52: 0
A53: 3 міс. | B53: 0 | C53: 0 | D53: 0 | E53: 0
A54: 4. міс. | B54: 0 | C54: 0 | D54: 0 | E54: 0
A55: 5.міс | B55: 0 | C55: 0 | D55: 0 | E55: 0
A56: 6.міс. | B56: 0 | C56: 0 | D56: 0 | E56: 0
A57: 7.міс. | B57: 0 | C57: 0 | D57: 0 | E57: 0
A58: 8.міс | B58: 0 | C58: 0 | D58: 0 | E58: 0
A59: 9.міс. | B59: 0 | C59: 0 | D59: 0 | E59: 0
A60: 10.міс. | B60: 0 | C60: 0 | D60: 0 | E60: 0
A61: 11.міс | B61: 0 | C61: 0 | D61: 0 | E61: 0
A62: 12 міс. | B62: 0 | C62: 0 | D62: 0 | E62: 0
A63: Усього | C63: =SUM(C51:C62) -> 0 | D63: =SUM(D51:D62) -> 0 | E63: =SUM(E51:E62) -> 0
A64: Місяць | B64: 15 - й рік
B65: Залишок по кредиту | C65: Проценти до сплати | D65: Додаткові платежі на користь Банку/третіх осіб | E65: Загальний платіж
A66: 1 міс. | B66: =IF(data2=1,IF((Z62-sumproplat2)>1,Z62-sumproplat2,0),IF(Z62-(sumproplat2-AA62-AB62)>0,Z62-(AC62-AA62-AB62),0)) -> 0 | C66: =IF(data2=1,B66*(PROC2/36500)*30.42,B66*(PROC2/36000)*30) -> 0 | D66: =IF(AND($A66="1 міс.",B66>0),$J$25*$J$6+$J$26*B66,0)+IF(B66-IF(data2=1,IF(C66>0.001,C66+sumproplat2,0),IF(B66>sumproplat2*2,sumproplat2,B66+C66))<0,$J$28,0) -> 0 | E66: =IF(data2=1,IF(C66>0.001,C66+D66+sumproplat2,0),IF(B66>sumproplat2*2,sumproplat2+D66,B66+C66+D66)) -> 0
A67: 2.міс | B67: =IF(data2=1,IF((B66-sumproplat2)>1,B66-sumproplat2,0),IF(B66-(sumproplat2-C66-D66)>0,B66-(E66-C66-D66),0)) -> 0 | C67: 0 | D67: 0 | E67: 0
A68: 3 міс. | B68: 0 | C68: 0 | D68: 0 | E68: 0
A69: 4. міс. | B69: 0 | C69: 0 | D69: 0 | E69: 0
A70: 5.міс | B70: 0 | C70: 0 | D70: 0 | E70: 0
A71: 6.міс. | B71: 0 | C71: 0 | D71: 0 | E71: 0
A72: 7.міс. | B72: 0 | C72: 0 | D72: 0 | E72: 0
A73: 8.міс | B73: 0 | C73: 0 | D73: 0 | E73: 0
A74: 9.міс. | B74: 0 | C74: 0 | D74: 0 | E74: 0
A75: 10.міс. | B75: 0 | C75: 0 | D75: 0 | E75: 0
A76: 11.міс | B76: 0 | C76: 0 | D76: 0 | E76: 0
A77: 12 міс. | B77: 0 | C77: 0 | D77: 0 | E77: 0
A78: Усього | C78: =SUM(C66:C77) -> 0 | D78: =SUM(D66:D77) -> 0 | E78: =SUM(E66:E77) -> 0
A80: Орієнтовні загальні витрати за кредитом (проценти за користуваннґ кредитом, комісії та інші обов'язкові платежі за супровідні послуги кредитодавця,кредитного посередника (за наявності) та третії осіб, пов'язані з отриманням, обслуговуванням та поверненням кредиту), грн., з них: | K80: =K81+K82 -> 98493.28219
A81: - Платежі за супровідні послуги кредитодавця, пов'язані з отриманням, обслуговуванням та поверненням кредиту, грн. | K81: =C48+G48+K48+O48+S48+W48+AA48+C63+G63+K63+O63+S63+W63+AA63+C78+G78+K78+O78+S78+W78+AA78+$J$17*sumkred2+$J$18+$J$19*sumkred2+J21 -> 98493.28219
A82: - Платежі за супровідні послуги третіх осіб, пов'язані з отриманням, обслуговуванням та поверненням кредиту), грн. | K82: =D48+H48+L48+P48+T48+X48+AB48+D63+H63+L63+P63+T63+X63+AB63+D78+H78+L78+P78+T78+X78+AB78-($J$17*sumkred2+$J$18+$J$19*sumkred2+J21) -> 0
A83: Орієнтовна загальна вартість кредиту для споживача за весь строк користування кредитом (у т.ч. тіло кредиту, відсотки, комісії та інші платежі), грн. | K83: =E48+I48+M48+Q48+U48+Y48+AC48+E63+I63+M63+Q63+U63+Y63+AC63+E78+I78+M78+Q78+U78+Y78+AC78 -> 1098493.282
A84: Орієнтовна реальна річна процентна ставка, % річних | K84: =XIRR(C94:C334,B94:B334) -> 0.198135072
A85: Застереження: наведені обчислення орієнтовної реальної річної процентної ставки та орієнтовної загальної вартості кредиту для споживача є репрезентативними та базуються на обраних споживачем умовах кредитування, викладених вище, і на припущенні, що договір про споживчий кредит залишатиметься дійсним протягом погодженого строку, а кредитодавець і споживач виконають свої обов’язки на умовах та у строки, визначені в договорі.
A86: Орієнтовна реальна річна процентна ставка обчислена на основі припущення, що процентна ставка та інші платежі за послуги кредитодавця залишатимуться незмінними та застосовуватимуться протягом строку дії договору про споживчий кредит. Орієнтовна реальна річна процентна ставка обчислена з використанням фінансової функції ЧИСТВНДОХ програмного продукту Microsoft Excel.
A87: Застереження: використання інших способів надання кредиту та/або зміна інших вищезазначених умов кредитування можуть мати наслідком застосування іншої орієнтовної реальної річної процентної ставки та орієнтовної загальної вартості кредиту для споживача.
A89: Дата надання інформації: | C89: =TODAY() -> 2025-07-14
A91: Підпис споживача:
C92: ПІБ, підпис.
B94: =TODAY() -> 2025-07-14 | C94: =-sumkred2+D36 -> -992300
A95: 1 | B95: =EDATE(B94,1) -> 2025-08-14 | C95: =E36-D36 -> 97301.53059
A96: 2 | B96: =EDATE(B95,1) -> 2025-09-14 | C96: =E37 -> 96137.51416
A97: 3 | B97: =EDATE(B96,1) -> 2025-10-14 | C97: 94973.49772
A98: 4 | B98: 2025-11-14 | C98: 93809.48128
A99: 5 | B99: 2025-12-14 | C99: 92645.46484
A100: 6 | B100: 2026-01-14 | C100: 91481.4484
A101: 7 | B101: 2026-02-14 | C101: 90317.43196
A102: 8 | B102: 2026-03-14 | C102: 89153.41553
A103: 9 | B103: 2026-04-14 | C103: 87989.39909
A104: 10 | B104: 2026-05-14 | C104: 86825.38265
A105: 11 | B105: 2026-06-14 | C105: 85661.36621
A106: 12 | B106: 2026-07-14 | C106: 84497.34977
A107: 13 | B107: 2026-08-14 | C107: =I36 -> 0
A108: 14 | B108: 2026-09-14 | C108: 0
A109: 15 | B109: 2026-10-14 | C109: 0
A110: 16 | B110: 2026-11-14 | C110: 0
A111: 17 | B111: 2026-12-14 | C111: 0
A112: 18 | B112: 2027-01-14 | C112: 0
A113: 19 | B113: 2027-02-14 | C113: 0
A114: 20 | B114: 2027-03-14 | C114: 0
A115: 21 | B115: 2027-04-14 | C115: 0
A116: 22 | B116: 2027-05-14 | C116: 0
A117: 23 | B117: 2027-06-14 | C117: 0
A118: 24 | B118: 2027-07-14 | C118: 0
A119: 25 | B119: 2027-08-14 | C119: =M36 -> 0
A120: 26 | B120: 2027-09-14 | C120: 0
A121: 27 | B121: 2027-10-14 | C121: 0
A122: 28 | B122: 2027-11-14 | C122: 0
A123: 29 | B123: 2027-12-14 | C123: 0
A124: 30 | B124: 2028-01-14 | C124: 0
A125: 31 | B125: 2028-02-14 | C125: 0
A126: 32 | B126: 2028-03-14 | C126: 0
A127: 33 | B127: 2028-04-14 | C127: 0
A128: 34 | B128: 2028-05-14 | C128: 0
A129: 35 | B129: 2028-06-14 | C129: 0
A130: 36 | B130: 2028-07-14 | C130: 0
A131: 37 | B131: 2028-08-14 | C131: =Q36 -> 0
A132: 38 | B132: 2028-09-14 | C132: 0
A133: 39 | B133: 2028-10-14 | C133: 0
A134: 40 | B134: 2028-11-14 | C134: 0
A135: 41 | B135: 2028-12-14 | C135: 0
A136: 42 | B136: 2029-01-14 | C136: 0
A137: 43 | B137: 2029-02-14 | C137: 0
A138: 44 | B138: 2029-03-14 | C138: 0
A139: 45 | B139: 2029-04-14 | C139: 0
A140: 46 | B140: 2029-05-14 | C140: 0
A141: 47 | B141: 2029-06-14 | C141: 0
A142: 48 | B142: 2029-07-14 | C142: 0
A143: 49 | B143: 2029-08-14 | C143: =U36 -> 0
A144: 50 | B144: 2029-09-14 | C144: 0
A145: 51 | B145: 2029-10-14 | C145: 0
A146: 52 | B146: 2029-11-14 | C146: 0
A147: 53 | B147: 2029-12-14 | C147: 0
A148: 54 | B148: 2030-01-14 | C148: 0
A149: 55 | B149: 2030-02-14 | C149: 0
A150: 56 | B150: 2030-03-14 | C150: 0
A151: 57 | B151: 2030-04-14 | C151: 0
A152: 58 | B152: 2030-05-14 | C152: 0
A153: 59 | B153: 2030-06-14 | C153: 0
A154: 60 | B154: 2030-07-14 | C154: 0
A155: 61 | B155: 2030-08-14 | C155: =Y36 -> 0
A156: 62 | B156: 2030-09-14 | C156: 0
A157: 63 | B157: 2030-10-14 | C157: 0
A158: 64 | B158: 2030-11-14 | C158: 0
A159: 65 | B159: 2030-12-14 | C159: 0
A160: 66 | B160: 2031-01-14 | C160: 0
A161: 67 | B161: =EDATE(B160,1) -> 2031-02-14 | C161: 0
A162: 68 | B162: 2031-03-14 | C162: 0
A163: 69 | B163: 2031-04-14 | C163: 0
A164: 70 | B164: 2031-05-14 | C164: 0
A165: 71 | B165: 2031-06-14 | C165: 0
A166: 72 | B166: 2031-07-14 | C166: 0
A167: 73 | B167: 2031-08-14 | C167: =AC36 -> 0
A168: 74 | B168: 2031-09-14 | C168: 0
A169: 75 | B169: 2031-10-14 | C169: 0
A170: 76 | B170: 2031-11-14 | C170: 0
A171: 77 | B171: 2031-12-14 | C171: 0
A172: 78 | B172: 2032-01-14 | C172: 0
A173: 79 | B173: 2032-02-14 | C173: 0
A174: 80 | B174: 2032-03-14 | C174: 0
A175: 81 | B175: 2032-04-14 | C175: 0
A176: 82 | B176: 2032-05-14 | C176: 0
A177: 83 | B177: 2032-06-14 | C177: 0
A178: 84 | B178: 2032-07-14 | C178: 0
A179: 85 | B179: 2032-08-14 | C179: =E51 -> 0
A180: 86 | B180: 2032-09-14 | C180: 0
A181: 87 | B181: 2032-10-14 | C181: 0
A182: 88 | B182: 2032-11-14 | C182: 0
A183: 89 | B183: 2032-12-14 | C183: 0
A184: 90 | B184: 2033-01-14 | C184: 0
A185: 91 | B185: 2033-02-14 | C185: 0
A186: 92 | B186: 2033-03-14 | C186: 0
A187: 93 | B187: 2033-04-14 | C187: 0
A188: 94 | B188: 2033-05-14 | C188: 0
A189: 95 | B189: 2033-06-14 | C189: 0
A190: 96 | B190: 2033-07-14 | C190: 0
A191: 97 | B191: 2033-08-14 | C191: =I51 -> 0
A192: 98 | B192: 2033-09-14 | C192: 0
A193: 99 | B193: 2033-10-14 | C193: 0
A194: 100 | B194: 2033-11-14 | C194: 0
A195: 101 | B195: 2033-12-14 | C195: 0
A196: 102 | B196: 2034-01-14 | C196: 0
A197: 103 | B197: 2034-02-14 | C197: 0
A198: 104 | B198: 2034-03-14 | C198: 0
A199: 105 | B199: 2034-04-14 | C199: 0
A200: 106 | B200: 2034-05-14 | C200: 0
A201: 107 | B201: 2034-06-14 | C201: 0
A202: 108 | B202: 2034-07-14 | C202: 0
A203: 109 | B203: 2034-08-14 | C203: =M51 -> 0
A204: 110 | B204: 2034-09-14 | C204: 0
A205: 111 | B205: 2034-10-14 | C205: 0
A206: 112 | B206: 2034-11-14 | C206: 0
... 128 more rows

Sheet Додаток до Паспорту_В кінці (hidden)
A1: Додаток 1 до протоколу Кредитної Ради АБ "УКРГАЗБАНК" від 01.06.2017 №92/12
A2: ТИПОВА ФОРМА
A3: Додаток до Паспорту споживчого кредиту за програмою/продуктом:
A4: «КРЕДИТ ПІД ДЕПОЗИТ»
A8: Обрані споживачем умови кредитування
A9: Значення у цій колонці зазначається департаментом роздрібного банкінгу згідно умов програми/продукту кредитування та можуть корегуватися (додаватися або вилучатися ) | H9: Значення у цій колонці зазначається підрозділом Банку, до якого звернувся споживач
A10: Власний платіж (внесок), % | H10: 0.1 | AA10: В кінці строку | AB10: Есть
A11: Сума / ліміт кредиту, грн. | H11: 4000000 | AA11: Класика | AB11: Нет
A12: Строк кредитування, міс. | H12: 12
A13: Процентна ставка (номінальна), % річних | H13: 22.63
A14: Схема погашення кредиту | H14: 1 | AB14: 0.007
A15: =CONCATENATE("Месячный платеж по кредиту, ",L22) -> Месячный платеж по кредиту, | H15: =IF(data=1,0,sumkred*PROC/100/((1-POWER(1+PROC/1200,-strok))*12)) -> 0
A16: Комісія за надання кредиту, % від суми кредиту | H16: 0 | AB16: 0.01
A17: Відкриття поточного рахунку, грн. | H17: 100
A18: Переказ/видача готівкою кредитних коштів, виданих АБ "УКРГАЗБАНК", % від суми переказу (суми кредиту) | H18: 0.01
A19: ….
A20: Комісія за внесення запису про реєстрацію обтяження предмету застави в ДРОРМ, з ПДВ | H20: 750
A21: Відкриття поточного рахунку, операції за яким здійснюються з використанням електронних платіжних засобів ("ЕКО-кредитка") | H21: окремо плата не стягується
A22: 2 | V22: грн.
A23: Місяць | B23: 1 - й рік | E23: 2 - й рік | H23: 3 - й рік | K23: 4 - й рік | N23: 5 - й рік | Q23: 6 - й рік | T23: 7 - й рік
B24: Залишок по кредиту | C24: Проценти до сплати | D24: Загальний платіж | E24: Залишок по кредиту | F24: Проценти до сплати | G24: Загальний платіж | H24: Залишок по кредиту | I24: Проценти до сплати | J24: Загальний платіж | K24: Залишок по кредиту | L24: Проценти до сплати | M24: Загальний платіж | N24: Залишок по кредиту | O24: Проценти до сплати | P24: Загальний платіж | Q24: Залишок по кредиту | R24: Проценти до сплати | S24: Загальний платіж | T24: Залишок по кредиту | U24: Проценти до сплати | V24: Загальний платіж
A25: 1 | B25: =sumkred -> 4000000 | C25: =IF(A25>strok,0,IF(data=1,B25*(PROC/36500)*30.42,B25*(PROC/36000)*30)) -> 75441.6 | D25: =IF(A25=strok,B25+C25,C25) -> 75441.6 | E25: =IF(data=1,IF((B36-sumproplat)>0,B36-sumproplat,0),IF(B36-(sumproplat-C36)>0,B36-(D36-C36),0)) -> 4000000 | F25: =IF(data=1,E25*(PROC/36500)*30.42,E25*(PROC/36000)*30) -> 75441.6 | G25: =IF(data=1,IF(F25>0.0001,F25+sumproplat,0),IF(E25>sumproplat*2,sumproplat,E25+F25)) -> 75441.6 | H25: =IF(data=1,IF((E36-sumproplat)>0,E36-sumproplat,0),IF(E36-(sumproplat-F36)>0,E36-(G36-F36),0)) -> 4000000 | I25: =IF(data=1,H25*(PROC/36500)*30.42,H25*(PROC/36000)*30) -> 75441.6 | J25: =IF(data=1,IF(I25>0.0001,I25+sumproplat,0),IF(H25>sumproplat*2,sumproplat,H25+I25)) -> 75441.6 | K25: =IF(data=1,IF((H36-sumproplat)>0,H36-sumproplat,0),IF(H36-(sumproplat-I36)>0,H36-(J36-I36),0)) -> 4000000 | L25: =IF(data=1,K25*(PROC/36500)*30.42,K25*(PROC/36000)*30) -> 75441.6 | M25: =IF(data=1,IF(L25>0.0001,L25+sumproplat,0),IF(K25>sumproplat*2,sumproplat,K25+L25)) -> 75441.6 | N25: =IF(data=1,IF((K36-sumproplat)>0,K36-sumproplat,0),IF(K36-(sumproplat-L36)>0,K36-(M36-L36),0)) -> 4000000 | O25: =IF(data=1,N25*(PROC/36500)*30.42,N25*(PROC/36000)*30) -> 75441.6 | P25: =IF(data=1,IF(O25>0.0001,O25+sumproplat,0),IF(N25>sumproplat*2,sumproplat,N25+O25)) -> 75441.6 | Q25: =IF(data=1,IF((N36-sumproplat)>0,N36-sumproplat,0),IF(N36-(sumproplat-O36)>0,N36-(P36-O36),0)) -> 4000000 | R25: =IF(data=1,Q25*(PROC/36500)*30.42,Q25*(PROC/36000)*30) -> 75441.6 | S25: =IF(data=1,IF(R25>0.0001,R25+sumproplat,0),IF(Q25>sumproplat*2,sumproplat,Q25+R25)) -> 75441.6 | T25: =IF(data=1,IF((Q36-sumproplat)>0,Q36-sumproplat,0),IF(Q36-(sumproplat-R36)>0,Q36-(S36-R36),0)) -> 4000000 | U25: =IF(data=1,T25*(PROC/36500)*30.42,T25*(PROC/36000)*30) -> 75441.6 | V25: =IF(data=1,IF(U25>0.0001,U25+sumproplat,0),IF(T25>sumproplat*2,sumproplat,T25+U25)) -> 75441.6
A26: 2 | B26: =IF(data=1,IF(A26>strok,0,B25),0) -> 4000000 | C26: 75441.6 | D26: 75441.6 | E26: =IF(data=1,IF((E25-sumproplat)>0,E25-sumproplat,0),IF(E25-(sumproplat-F25)>0,E25-(G25-F25),0)) -> 4000000 | F26: 75441.6 | G26: 75441.6 | H26: =IF(data=1,IF((H25-sumproplat)>0,H25-sumproplat,0),IF(H25-(sumproplat-I25)>0,H25-(J25-I25),0)) -> 4000000 | I26: 75441.6 | J26: 75441.6 | K26: =IF(data=1,IF((K25-sumproplat)>0,K25-sumproplat,0),IF(K25-(sumproplat-L25)>0,K25-(M25-L25),0)) -> 4000000 | L26: 75441.6 | M26: 75441.6 | N26: =IF(data=1,IF((N25-sumproplat)>0,N25-sumproplat,0),IF(N25-(sumproplat-O25)>0,N25-(P25-O25),0)) -> 4000000 | O26: 75441.6 | P26: 75441.6 | Q26: =IF(data=1,IF((Q25-sumproplat)>0,Q25-sumproplat,0),IF(Q25-(sumproplat-R25)>0,Q25-(S25-R25),0)) -> 4000000 | R26: 75441.6 | S26: 75441.6 | T26: =IF(data=1,IF((T25-sumproplat)>0,T25-sumproplat,0),IF(T25-(sumproplat-U25)>0,T25-(V25-U25),0)) -> 4000000 | U26: 75441.6 | V26: 75441.6
A27: 3 | B27: 4000000 | C27: 75441.6 | D27: 75441.6 | E27: =IF(data=1,IF((E26-sumproplat)>0,E26-sumproplat,0),IF(E26-(sumproplat-F26)>0,E26-(G26-F26),0)) -> 4000000 | F27: 75441.6 | G27: 75441.6 | H27: =IF(data=1,IF((H26-sumproplat)>0,H26-sumproplat,0),IF(H26-(sumproplat-I26)>0,H26-(J26-I26),0)) -> 4000000 | I27: 75441.6 | J27: 75441.6 | K27: =IF(data=1,IF((K26-sumproplat)>0,K26-sumproplat,0),IF(K26-(sumproplat-L26)>0,K26-(M26-L26),0)) -> 4000000 | L27: 75441.6 | M27: 75441.6 | N27: =IF(data=1,IF((N26-sumproplat)>0,N26-sumproplat,0),IF(N26-(sumproplat-O26)>0,N26-(P26-O26),0)) -> 4000000 | O27: 75441.6 | P27: 75441.6 | Q27: =IF(data=1,IF((Q26-sumproplat)>0,Q26-sumproplat,0),IF(Q26-(sumproplat-R26)>0,Q26-(S26-R26),0)) -> 4000000 | R27: 75441.6 | S27: 75441.6 | T27: =IF(data=1,IF((T26-sumproplat)>0,T26-sumproplat,0),IF(T26-(sumproplat-U26)>0,T26-(V26-U26),0)) -> 4000000 | U27: 75441.6 | V27: 75441.6
A28: 4 | B28: 4000000 | C28: 75441.6 | D28: 75441.6 | E28: 4000000 | F28: 75441.6 | G28: 75441.6 | H28: 4000000 | I28: 75441.6 | J28: 75441.6 | K28: 4000000 | L28: 75441.6 | M28: 75441.6 | N28: 4000000 | O28: 75441.6 | P28: 75441.6 | Q28: 4000000 | R28: 75441.6 | S28: 75441.6 | T28: 4000000 | U28: 75441.6 | V28: 75441.6
A29: 5 | B29: 4000000 | C29: 75441.6 | D29: 75441.6 | E29: 4000000 | F29: 75441.6 | G29: 75441.6 | H29: 4000000 | I29: 75441.6 | J29: 75441.6 | K29: 4000000 | L29: 75441.6 | M29: 75441.6 | N29: 4000000 | O29: 75441.6 | P29: 75441.6 | Q29: 4000000 | R29: 75441.6 | S29: 75441.6 | T29: 4000000 | U29: 75441.6 | V29: 75441.6
A30: 6 | B30: 4000000 | C30: 75441.6 | D30: 75441.6 | E30: 4000000 | F30: 75441.6 | G30: 75441.6 | H30: 4000000 | I30: 75441.6 | J30: 75441.6 | K30: 4000000 | L30: 75441.6 | M30: 75441.6 | N30: 4000000 | O30: 75441.6 | P30: 75441.6 | Q30: 4000000 | R30: 75441.6 | S30: 75441.6 | T30: 4000000 | U30: 75441.6 | V30: 75441.6
A31: 7 | B31: 4000000 | C31: 75441.6 | D31: 75441.6 | E31: 4000000 | F31: 75441.6 | G31: 75441.6 | H31: 4000000 | I31: 75441.6 | J31: 75441.6 | K31: 4000000 | L31: 75441.6 | M31: 75441.6 | N31: 4000000 | O31: 75441.6 | P31: 75441.6 | Q31: 4000000 | R31: 75441.6 | S31: 75441.6 | T31: 4000000 | U31: 75441.6 | V31: 75441.6
A32: 8 | B32: 4000000 | C32: 75441.6 | D32: 75441.6 | E32: 4000000 | F32: 75441.6 | G32: 75441.6 | H32: 4000000 | I32: 75441.6 | J32: 75441.6 | K32: 4000000 | L32: 75441.6 | M32: 75441.6 | N32: 4000000 | O32: 75441.6 | P32: 75441.6 | Q32: 4000000 | R32: 75441.6 | S32: 75441.6 | T32: 4000000 | U32: 75441.6 | V32: 75441.6
A33: 9 | B33: 4000000 | C33: 75441.6 | D33: 75441.6 | E33: 4000000 | F33: 75441.6 | G33: 75441.6 | H33: 4000000 | I33: 75441.6 | J33: 75441.6 | K33: 4000000 | L33: 75441.6 | M33: 75441.6 | N33: 4000000 | O33: 75441.6 | P33: 75441.6 | Q33: 4000000 | R33: 75441.6 | S33: 75441.6 | T33: 4000000 | U33: 75441.6 | V33: 75441.6
A34: 10 | B34: 4000000 | C34: 75441.6 | D34: 75441.6 | E34: 4000000 | F34: 75441.6 | G34: 75441.6 | H34: 4000000 | I34: 75441.6 | J34: 75441.6 | K34: 4000000 | L34: 75441.6 | M34: 75441.6 | N34: 4000000 | O34: 75441.6 | P34: 75441.6 | Q34: 4000000 | R34: 75441.6 | S34: 75441.6 | T34: 4000000 | U34: 75441.6 | V34: 75441.6
A35: 11 | B35: 4000000 | C35: 75441.6 | D35: 75441.6 | E35: 4000000 | F35: 75441.6 | G35: 75441.6 | H35: 4000000 | I35: 75441.6 | J35: 75441.6 | K35: 4000000 | L35: 75441.6 | M35: 75441.6 | N35: 4000000 | O35: 75441.6 | P35: 75441.6 | Q35: 4000000 | R35: 75441.6 | S35: 75441.6 | T35: 4000000 | U35: 75441.6 | V35: 75441.6
A36: 12 | B36: 4000000 | C36: 75441.6 | D36: 4075441.6 | E36: 4000000 | F36: 75441.6 | G36: 75441.6 | H36: 4000000 | I36: 75441.6 | J36: 75441.6 | K36: 4000000 | L36: 75441.6 | M36: 75441.6 | N36: 4000000 | O36: 75441.6 | P36: 75441.6 | Q36: 4000000 | R36: 75441.6 | S36: 75441.6 | T36: 4000000 | U36: 75441.6 | V36: 75441.6
A37: Усього | C37: =SUM(C25:C36) -> 905299.2 | D37: =SUM(D25:D36) -> 4905299.2 | F37: =SUM(F25:F36) -> 905299.2 | G37: =SUM(G25:G36) -> 905299.2 | I37: =SUM(I25:I36) -> 905299.2 | J37: =SUM(J25:J36) -> 905299.2 | L37: =SUM(L25:L36) -> 905299.2 | M37: =SUM(M25:M36) -> 905299.2 | O37: =SUM(O25:O36) -> 905299.2 | P37: =SUM(P25:P36) -> 905299.2 | R37: =SUM(R25:R36) -> 905299.2 | S37: =SUM(S25:S36) -> 905299.2 | U37: =SUM(U25:U36) -> 905299.2 | V37: =SUM(V25:V36) -> 905299.2
A38: Місяць | B38: 8 - й рік | E38: 9 - й рік | H38: 10 - й рік | K38: 11 - й рік | N38: 12 - й рік | Q38: 13 - й рік | T38: 14 - й рік
B39: Залишок по кредиту | C39: Проценти до сплати | D39: Загальний платіж | E39: Залишок по кредиту | F39: Проценти до сплати | G39: Загальний платіж | H39: Залишок по кредиту | I39: Проценти до сплати | J39: Загальний платіж | K39: Залишок по кредиту | L39: Проценти до сплати | M39: Загальний платіж | N39: Залишок по кредиту | O39: Проценти до сплати | P39: Загальний платіж | Q39: Залишок по кредиту | R39: Проценти до сплати | S39: Загальний платіж | T39: Залишок по кредиту | U39: Проценти до сплати | V39: Загальний платіж
A40: 1 міс. | B40: =IF(data=1,IF((T36-sumproplat)>0,T36-sumproplat,0),IF(T36-(sumproplat-U36)>0,T36-(V36-U36),0)) -> 4000000 | C40: =IF(data=1,B40*(PROC/36500)*30.42,B40*(PROC/36000)*30) -> 75441.6 | D40: =IF(data=1,IF(C40>0.0001,C40+sumproplat,0),IF(B40>sumproplat*2,sumproplat,B40+C40)) -> 75441.6 | E40: =IF(data=1,IF((B51-sumproplat)>0,B51-sumproplat,0),IF(B51-(sumproplat-C51)>0,B51-(D51-C51),0)) -> 4000000 | F40: =IF(data=1,E40*(PROC/36500)*30.42,E40*(PROC/36000)*30) -> 75441.6 | G40: =IF(data=1,IF(F40>0.0001,F40+sumproplat,0),IF(E40>sumproplat*2,sumproplat,E40+F40)) -> 75441.6 | H40: =IF(data=1,IF((E51-sumproplat)>0,E51-sumproplat,0),IF(E51-(sumproplat-F51)>0,E51-(G51-F51),0)) -> 4000000 | I40: =IF(data=1,H40*(PROC/36500)*30.42,H40*(PROC/36000)*30) -> 75441.6 | J40: =IF(data=1,IF(I40>0.0001,I40+sumproplat,0),IF(H40>sumproplat*2,sumproplat,H40+I40)) -> 75441.6 | K40: =IF(data=1,IF((H51-sumproplat)>0,H51-sumproplat,0),IF(H51-(sumproplat-I51)>0,H51-(J51-I51),0)) -> 4000000 | L40: =IF(data=1,K40*(PROC/36500)*30.42,K40*(PROC/36000)*30) -> 75441.6 | M40: =IF(data=1,IF(L40>0.0001,L40+sumproplat,0),IF(K40>sumproplat*2,sumproplat,K40+L40)) -> 75441.6 | N40: =IF(data=1,IF((K51-sumproplat)>0,K51-sumproplat,0),IF(K51-(sumproplat-L51)>0,K51-(M51-L51),0)) -> 4000000 | O40: =IF(data=1,N40*(PROC/36500)*30.42,N40*(PROC/36000)*30) -> 75441.6 | P40: =IF(data=1,IF(O40>0.0001,O40+sumproplat,0),IF(N40>sumproplat*2,sumproplat,N40+O40)) -> 75441.6 | Q40: =IF(data=1,IF((N51-sumproplat)>0,N51-sumproplat,0),IF(N51-(sumproplat-O51)>0,N51-(P51-O51),0)) -> 4000000 | R40: =IF(data=1,Q40*(PROC/36500)*30.42,Q40*(PROC/36000)*30) -> 75441.6 | S40: =IF(data=1,IF(R40>0.0001,R40+sumproplat,0),IF(Q40>sumproplat*2,sumproplat,Q40+R40)) -> 75441.6 | T40: =IF(data=1,IF((Q51-sumproplat)>0,Q51-sumproplat,0),IF(Q51-(sumproplat-R51)>0,Q51-(S51-R51),0)) -> 4000000 | U40: =IF(data=1,T40*(PROC/36500)*30.42,T40*(PROC/36000)*30) -> 75441.6 | V40: =IF(data=1,IF(U40>0.0001,U40+sumproplat,0),IF(T40>sumproplat*2,sumproplat,T40+U40)) -> 75441.6
A41: 2.міс | B41: =IF(data=1,IF((B40-sumproplat)>0,B40-sumproplat,0),IF(B40-(sumproplat-C40)>0,B40-(D40-C40),0)) -> 4000000 | C41: 75441.6 | D41: 75441.6 | E41: =IF(data=1,IF((E40-sumproplat)>0,E40-sumproplat,0),IF(E40-(sumproplat-F40)>0,E40-(G40-F40),0)) -> 4000000 | F41: 75441.6 | G41: 75441.6 | H41: =IF(data=1,IF((H40-sumproplat)>0,H40-sumproplat,0),IF(H40-(sumproplat-I40)>0,H40-(J40-I40),0)) -> 4000000 | I41: 75441.6 | J41: 75441.6 | K41: =IF(data=1,IF((K40-sumproplat)>0,K40-sumproplat,0),IF(K40-(sumproplat-L40)>0,K40-(M40-L40),0)) -> 4000000 | L41: 75441.6 | M41: 75441.6 | N41: =IF(data=1,IF((N40-sumproplat)>0,N40-sumproplat,0),IF(N40-(sumproplat-O40)>0,N40-(P40-O40),0)) -> 4000000 | O41: 75441.6 | P41: 75441.6 | Q41: =IF(data=1,IF((Q40-sumproplat)>0,Q40-sumproplat,0),IF(Q40-(sumproplat-R40)>0,Q40-(S40-R40),0)) -> 4000000 | R41: 75441.6 | S41: 75441.6 | T41: =IF(data=1,IF((T40-sumproplat)>0,T40-sumproplat,0),IF(T40-(sumproplat-U40)>0,T40-(V40-U40),0)) -> 4000000 | U41: 75441.6 | V41: 75441.6
A42: 3 міс. | B42: =IF(data=1,IF((B41-sumproplat)>0,B41-sumproplat,0),IF(B41-(sumproplat-C41)>0,B41-(D41-C41),0)) -> 4000000 | C42: 75441.6 | D42: 75441.6 | E42: =IF(data=1,IF((E41-sumproplat)>0,E41-sumproplat,0),IF(E41-(sumproplat-F41)>0,E41-(G41-F41),0)) -> 4000000 | F42: 75441.6 | G42: 75441.6 | H42: =IF(data=1,IF((H41-sumproplat)>0,H41-sumproplat,0),IF(H41-(sumproplat-I41)>0,H41-(J41-I41),0)) -> 4000000 | I42: 75441.6 | J42: 75441.6 | K42: =IF(data=1,IF((K41-sumproplat)>0,K41-sumproplat,0),IF(K41-(sumproplat-L41)>0,K41-(M41-L41),0)) -> 4000000 | L42: 75441.6 | M42: 75441.6 | N42: =IF(data=1,IF((N41-sumproplat)>0,N41-sumproplat,0),IF(N41-(sumproplat-O41)>0,N41-(P41-O41),0)) -> 4000000 | O42: 75441.6 | P42: 75441.6 | Q42: =IF(data=1,IF((Q41-sumproplat)>0,Q41-sumproplat,0),IF(Q41-(sumproplat-R41)>0,Q41-(S41-R41),0)) -> 4000000 | R42: 75441.6 | S42: 75441.6 | T42: =IF(data=1,IF((T41-sumproplat)>0,T41-sumproplat,0),IF(T41-(sumproplat-U41)>0,T41-(V41-U41),0)) -> 4000000 | U42: 75441.6 | V42: 75441.6
A43: 2 міс. | B43: 4000000 | C43: 75441.6 | D43: 75441.6 | E43: 4000000 | F43: 75441.6 | G43: 75441.6 | H43: 4000000 | I43: 75441.6 | J43: 75441.6 | K43: 4000000 | L43: 75441.6 | M43: 75441.6 | N43: 4000000 | O43: 75441.6 | P43: 75441.6 | Q43: 4000000 | R43: 75441.6 | S43: 75441.6 | T43: 4000000 | U43: 75441.6 | V43: 75441.6
A44: 2.міс | B44: 4000000 | C44: 75441.6 | D44: 75441.6 | E44: 4000000 | F44: 75441.6 | G44: 75441.6 | H44: 4000000 | I44: 75441.6 | J44: 75441.6 | K44: 4000000 | L44: 75441.6 | M44: 75441.6 | N44: 4000000 | O44: 75441.6 | P44: 75441.6 | Q44: 4000000 | R44: 75441.6 | S44: 75441.6 | T44: 4000000 | U44: 75441.6 | V44: 75441.6
A45: 4 міс. | B45: 4000000 | C45: 75441.6 | D45: 75441.6 | E45: 4000000 | F45: 75441.6 | G45: 75441.6 | H45: 4000000 | I45: 75441.6 | J45: 75441.6 | K45: 4000000 | L45: 75441.6 | M45: 75441.6 | N45: 4000000 | O45: 75441.6 | P45: 75441.6 | Q45: 4000000 | R45: 75441.6 | S45: 75441.6 | T45: 4000000 | U45: 75441.6 | V45: 75441.6
A46: 3 міс. | B46: 4000000 | C46: 75441.6 | D46: 75441.6 | E46: 4000000 | F46: 75441.6 | G46: 75441.6 | H46: 4000000 | I46: 75441.6 | J46: 75441.6 | K46: 4000000 | L46: 75441.6 | M46: 75441.6 | N46: 4000000 | O46: 75441.6 | P46: 75441.6 | Q46: 4000000 | R46: 75441.6 | S46: 75441.6 | T46: 4000000 | U46: 75441.6 | V46: 75441.6
A47: 2.міс | B47: 4000000 | C47: 75441.6 | D47: 75441.6 | E47: 4000000 | F47: 75441.6 | G47: 75441.6 | H47: 4000000 | I47: 75441.6 | J47: 75441.6 | K47: 4000000 | L47: 75441.6 | M47: 75441.6 | N47: 4000000 | O47: 75441.6 | P47: 75441.6 | Q47: 4000000 | R47: 75441.6 | S47: 75441.6 | T47: 4000000 | U47: 75441.6 | V47: 75441.6
A48: 5 міс. | B48: 4000000 | C48: 75441.6 | D48: 75441.6 | E48: 4000000 | F48: 75441.6 | G48: 75441.6 | H48: 4000000 | I48: 75441.6 | J48: 75441.6 | K48: 4000000 | L48: 75441.6 | M48: 75441.6 | N48: 4000000 | O48: 75441.6 | P48: 75441.6 | Q48: 4000000 | R48: 75441.6 | S48: 75441.6 | T48: 4000000 | U48: 75441.6 | V48: 75441.6
A49: 4 міс. | B49: 4000000 | C49: 75441.6 | D49: 75441.6 | E49: 4000000 | F49: 75441.6 | G49: 75441.6 | H49: 4000000 | I49: 75441.6 | J49: 75441.6 | K49: 4000000 | L49: 75441.6 | M49: 75441.6 | N49: 4000000 | O49: 75441.6 | P49: 75441.6 | Q49: 4000000 | R49: 75441.6 | S49: 75441.6 | T49: 4000000 | U49: 75441.6 | V49: 75441.6
A50: 2.міс | B50: 4000000 | C50: 75441.6 | D50: 75441.6 | E50: 4000000 | F50: 75441.6 | G50: 75441.6 | H50: 4000000 | I50: 75441.6 | J50: 75441.6 | K50: 4000000 | L50: 75441.6 | M50: 75441.6 | N50: 4000000 | O50: 75441.6 | P50: 75441.6 | Q50: 4000000 | R50: 75441.6 | S50: 75441.6 | T50: 4000000 | U50: 75441.6 | V50: 75441.6
A51: 6 міс. | B51: 4000000 | C51: 75441.6 | D51: 75441.6 | E51: 4000000 | F51: 75441.6 | G51: 75441.6 | H51: 4000000 | I51: 75441.6 | J51: 75441.6 | K51: 4000000 | L51: 75441.6 | M51: 75441.6 | N51: 4000000 | O51: 75441.6 | P51: 75441.6 | Q51: 4000000 | R51: 75441.6 | S51: 75441.6 | T51: 4000000 | U51: 75441.6 | V51: 75441.6
A52: Усього | C52: =SUM(C40:C51) -> 905299.2 | D52: =SUM(D40:D51) -> 905299.2 | F52: =SUM(F40:F51) -> 905299.2 | G52: =SUM(G40:G51) -> 905299.2 | I52: =SUM(I40:I51) -> 905299.2 | J52: =SUM(J40:J51) -> 905299.2 | L52: =SUM(L40:L51) -> 905299.2 | M52: =SUM(M40:M51) -> 905299.2 | O52: =SUM(O40:O51) -> 905299.2 | P52: =SUM(P40:P51) -> 905299.2 | R52: =SUM(R40:R51) -> 905299.2 | S52: =SUM(S40:S51) -> 905299.2 | U52: =SUM(U40:U51) -> 905299.2 | V52: =SUM(V40:V51) -> 905299.2
A53: Місяць | B53: 15 - й рік | E53: 16 - й рік | H53: 17 - й рік | K53: 18 - й рік | N53: 19 - й рік | Q53: 20 - й рік | T53: 21 - й рік
B54: Залишок по кредиту | C54: Проценти до сплати | D54: Загальний платіж | E54: Залишок по кредиту | F54: Проценти до сплати | G54: Загальний платіж | H54: Залишок по кредиту | I54: Проценти до сплати | J54: Загальний платіж | K54: Залишок по кредиту | L54: Проценти до сплати | M54: Загальний платіж | N54: Залишок по кредиту | O54: Проценти до сплати | P54: Загальний платіж | Q54: Залишок по кредиту | R54: Проценти до сплати | S54: Загальний платіж | T54: Залишок по кредиту | U54: Проценти до сплати | V54: Загальний платіж
A55: 1 міс. | B55: =IF(data=1,IF((T51-sumproplat)>0,T51-sumproplat,0),IF(T51-(sumproplat-U51)>0,T51-(V51-U51),0)) -> 4000000 | C55: =IF(data=1,B55*(PROC/36500)*30.42,B55*(PROC/36000)*30) -> 75441.6 | D55: =IF(data=1,IF(C55>0.0001,C55+sumproplat,0),IF(B55>sumproplat*2,sumproplat,B55+C55)) -> 75441.6 | E55: =IF(data=1,IF((B66-sumproplat)>0,B66-sumproplat,0),IF(B66-(sumproplat-C66)>0,B66-(D66-C66),0)) -> 4000000 | F55: =IF(data=1,E55*(PROC/36500)*30.42,E55*(PROC/36000)*30) -> 75441.6 | G55: =IF(data=1,IF(F55>0.0001,F55+sumproplat,0),IF(E55>sumproplat*2,sumproplat,E55+F55)) -> 75441.6 | H55: =IF(data=1,IF((E66-sumproplat)>0,E66-sumproplat,0),IF(E66-(sumproplat-F66)>0,E66-(G66-F66),0)) -> 4000000 | I55: =IF(data=1,H55*(PROC/36500)*30.42,H55*(PROC/36000)*30) -> 75441.6 | J55: =IF(data=1,IF(I55>0.0001,I55+sumproplat,0),IF(H55>sumproplat*2,sumproplat,H55+I55)) -> 75441.6 | K55: =IF(data=1,IF((H66-sumproplat)>0,H66-sumproplat,0),IF(H66-(sumproplat-I66)>0,H66-(J66-I66),0)) -> 4000000 | L55: =IF(data=1,K55*(PROC/36500)*30.42,K55*(PROC/36000)*30) -> 75441.6 | M55: =IF(data=1,IF(L55>0.0001,L55+sumproplat,0),IF(K55>sumproplat*2,sumproplat,K55+L55)) -> 75441.6 | N55: =IF(data=1,IF((K66-sumproplat)>0,K66-sumproplat,0),IF(K66-(sumproplat-L66)>0,K66-(M66-L66),0)) -> 4000000 | O55: =IF(data=1,N55*(PROC/36500)*30.42,N55*(PROC/36000)*30) -> 75441.6 | P55: =IF(data=1,IF(O55>0.0001,O55+sumproplat,0),IF(N55>sumproplat*2,sumproplat,N55+O55)) -> 75441.6 | Q55: =IF(data=1,IF((N66-sumproplat)>0,N66-sumproplat,0),IF(N66-(sumproplat-O66)>0,N66-(P66-O66),0)) -> 4000000 | R55: =IF(data=1,Q55*(PROC/36500)*30.42,Q55*(PROC/36000)*30) -> 75441.6 | S55: =IF(data=1,IF(R55>0.0001,R55+sumproplat,0),IF(Q55>sumproplat*2,sumproplat,Q55+R55)) -> 75441.6 | T55: =IF(data=1,IF((Q66-sumproplat)>0,Q66-sumproplat,0),IF(Q66-(sumproplat-R66)>0,Q66-(S66-R66),0)) -> 4000000 | U55: =IF(data=1,T55*(PROC/36500)*30.42,T55*(PROC/36000)*30) -> 75441.6 | V55: =IF(data=1,IF(U55>0.0001,U55+sumproplat,0),IF(T55>sumproplat*2,sumproplat,T55+U55)) -> 75441.6
A56: 2.міс | B56: =IF(data=1,IF((B55-sumproplat)>0,B55-sumproplat,0),IF(B55-(sumproplat-C55)>0,B55-(D55-C55),0)) -> 4000000 | C56: 75441.6 | D56: 75441.6 | E56: =IF(data=1,IF((E55-sumproplat)>0,E55-sumproplat,0),IF(E55-(sumproplat-F55)>0,E55-(G55-F55),0)) -> 4000000 | F56: 75441.6 | G56: 75441.6 | H56: =IF(data=1,IF((H55-sumproplat)>0,H55-sumproplat,0),IF(H55-(sumproplat-I55)>0,H55-(J55-I55),0)) -> 4000000 | I56: 75441.6 | J56: 75441.6 | K56: =IF(data=1,IF((K55-sumproplat)>0,K55-sumproplat,0),IF(K55-(sumproplat-L55)>0,K55-(M55-L55),0)) -> 4000000 | L56: 75441.6 | M56: 75441.6 | N56: =IF(data=1,IF((N55-sumproplat)>0,N55-sumproplat,0),IF(N55-(sumproplat-O55)>0,N55-(P55-O55),0)) -> 4000000 | O56: 75441.6 | P56: 75441.6 | Q56: =IF(data=1,IF((Q55-sumproplat)>0,Q55-sumproplat,0),IF(Q55-(sumproplat-R55)>0,Q55-(S55-R55),0)) -> 4000000 | R56: 75441.6 | S56: 75441.6 | T56: =IF(data=1,IF((T55-sumproplat)>0,T55-sumproplat,0),IF(T55-(sumproplat-U55)>0,T55-(V55-U55),0)) -> 4000000 | U56: 75441.6 | V56: 75441.6
A57: 3 міс. | B57: =IF(data=1,IF((B56-sumproplat)>0,B56-sumproplat,0),IF(B56-(sumproplat-C56)>0,B56-(D56-C56),0)) -> 4000000 | C57: 75441.6 | D57: 75441.6 | E57: =IF(data=1,IF((E56-sumproplat)>0,E56-sumproplat,0),IF(E56-(sumproplat-F56)>0,E56-(G56-F56),0)) -> 4000000 | F57: 75441.6 | G57: 75441.6 | H57: =IF(data=1,IF((H56-sumproplat)>0,H56-sumproplat,0),IF(H56-(sumproplat-I56)>0,H56-(J56-I56),0)) -> 4000000 | I57: 75441.6 | J57: 75441.6 | K57: =IF(data=1,IF((K56-sumproplat)>0,K56-sumproplat,0),IF(K56-(sumproplat-L56)>0,K56-(M56-L56),0)) -> 4000000 | L57: 75441.6 | M57: 75441.6 | N57: =IF(data=1,IF((N56-sumproplat)>0,N56-sumproplat,0),IF(N56-(sumproplat-O56)>0,N56-(P56-O56),0)) -> 4000000 | O57: 75441.6 | P57: 75441.6 | Q57: =IF(data=1,IF((Q56-sumproplat)>0,Q56-sumproplat,0),IF(Q56-(sumproplat-R56)>0,Q56-(S56-R56),0)) -> 4000000 | R57: 75441.6 | S57: 75441.6 | T57: =IF(data=1,IF((T56-sumproplat)>0,T56-sumproplat,0),IF(T56-(sumproplat-U56)>0,T56-(V56-U56),0)) -> 4000000 | U57: 75441.6 | V57: 75441.6
A58: 2 міс. | B58: 4000000 | C58: 75441.6 | D58: 75441.6 | E58: 4000000 | F58: 75441.6 | G58: 75441.6 | H58: 4000000 | I58: 75441.6 | J58: 75441.6 | K58: 4000000 | L58: 75441.6 | M58: 75441.6 | N58: 4000000 | O58: 75441.6 | P58: 75441.6 | Q58: 4000000 | R58: 75441.6 | S58: 75441.6 | T58: 4000000 | U58: 75441.6 | V58: 75441.6
A59: 2.міс | B59: 4000000 | C59: 75441.6 | D59: 75441.6 | E59: 4000000 | F59: 75441.6 | G59: 75441.6 | H59: 4000000 | I59: 75441.6 | J59: 75441.6 | K59: 4000000 | L59: 75441.6 | M59: 75441.6 | N59: 4000000 | O59: 75441.6 | P59: 75441.6 | Q59: 4000000 | R59: 75441.6 | S59: 75441.6 | T59: 4000000 | U59: 75441.6 | V59: 75441.6
A60: 4 міс. | B60: 4000000 | C60: 75441.6 | D60: 75441.6 | E60: 4000000 | F60: 75441.6 | G60: 75441.6 | H60: 4000000 | I60: 75441.6 | J60: 75441.6 | K60: 4000000 | L60: 75441.6 | M60: 75441.6 | N60: 4000000 | O60: 75441.6 | P60: 75441.6 | Q60: 4000000 | R60: 75441.6 | S60: 75441.6 | T60: 4000000 | U60: 75441.6 | V60: 75441.6
A61: 3 міс. | B61: 4000000 | C61: 75441.6 | D61: 75441.6 | E61: 4000000 | F61: 75441.6 | G61: 75441.6 | H61: 4000000 | I61: 75441.6 | J61: 75441.6 | K61: 4000000 | L61: 75441.6 | M61: 75441.6 | N61: 4000000 | O61: 75441.6 | P61: 75441.6 | Q61: 4000000 | R61: 75441.6 | S61: 75441.6 | T61: 4000000 | U61: 75441.6 | V61: 75441.6
A62: 2.міс | B62: 4000000 | C62: 75441.6 | D62: 75441.6 | E62: 4000000 | F62: 75441.6 | G62: 75441.6 | H62: 4000000 | I62: 75441.6 | J62: 75441.6 | K62: 4000000 | L62: 75441.6 | M62: 75441.6 | N62: 4000000 | O62: 75441.6 | P62: 75441.6 | Q62: 4000000 | R62: 75441.6 | S62: 75441.6 | T62: 4000000 | U62: 75441.6 | V62: 75441.6
A63: 5 міс. | B63: 4000000 | C63: 75441.6 | D63: 75441.6 | E63: 4000000 | F63: 75441.6 | G63: 75441.6 | H63: 4000000 | I63: 75441.6 | J63: 75441.6 | K63: 4000000 | L63: 75441.6 | M63: 75441.6 | N63: 4000000 | O63: 75441.6 | P63: 75441.6 | Q63: 4000000 | R63: 75441.6 | S63: 75441.6 | T63: 4000000 | U63: 75441.6 | V63: 75441.6
A64: 4 міс. | B64: 4000000 | C64: 75441.6 | D64: 75441.6 | E64: 4000000 | F64: 75441.6 | G64: 75441.6 | H64: 4000000 | I64: 75441.6 | J64: 75441.6 | K64: 4000000 | L64: 75441.6 | M64: 75441.6 | N64: 4000000 | O64: 75441.6 | P64: 75441.6 | Q64: 4000000 | R64: 75441.6 | S64: 75441.6 | T64: 4000000 | U64: 75441.6 | V64: 75441.6
A65: 2.міс | B65: 4000000 | C65: 75441.6 | D65: 75441.6 | E65: 4000000 | F65: 75441.6 | G65: 75441.6 | H65: 4000000 | I65: 75441.6 | J65: 75441.6 | K65: 4000000 | L65: 75441.6 | M65: 75441.6 | N65: 4000000 | O65: 75441.6 | P65: 75441.6 | Q65: 4000000 | R65: 75441.6 | S65: 75441.6 | T65: 4000000 | U65: 75441.6 | V65: 75441.6
A66: 6 міс. | B66: 4000000 | C66: 75441.6 | D66: 75441.6 | E66: 4000000 | F66: 75441.6 | G66: 75441.6 | H66: 4000000 | I66: 75441.6 | J66: 75441.6 | K66: 4000000 | L66: 75441.6 | M66: 75441.6 | N66: 4000000 | O66: 75441.6 | P66: 75441.6 | Q66: =IF(data=1,IF((Q65-sumproplat)>0,Q65-sumproplat,0),IF(Q65-(sumproplat-R65)>0,Q65-(S65-R65),0)) -> 4000000 | R66: 75441.6 | S66: 75441.6 | T66: 4000000 | U66: 75441.6 | V66: 75441.6
A67: Усього | C67: =SUM(C55:C66) -> 905299.2 | D67: =SUM(D55:D66) -> 905299.2 | F67: =SUM(F55:F66) -> 905299.2 | G67: =SUM(G55:G66) -> 905299.2 | I67: =SUM(I55:I66) -> 905299.2 | J67: =SUM(J55:J66) -> 905299.2 | L67: =SUM(L55:L66) -> 905299.2 | M67: =SUM(M55:M66) -> 905299.2 | O67: =SUM(O55:O66) -> 905299.2 | P67: =SUM(P55:P66) -> 905299.2 | R67: =SUM(R55:R66) -> 905299.2 | S67: =SUM(S55:S66) -> 905299.2 | U67: =SUM(U55:U66) -> 905299.2 | V67: =SUM(V55:V66) -> 905299.2
A69: Загальні витрати за кредитом (платежі за додаткові та супутні послуги кредитодавця, пов'язані з отриманням, обслуговуванням та поверненням кредиту), грн. | I69: =sumkred*H16+H17+sumkred*H18+C37+H20 -> 946149.2
A70: Орієнтовна загальна вартість кредиту для споживача за весь строк користування кредитом (у т.ч. тіло кредиту, відсотки, комісії та інші платежі), грн. | I70: =sumkred*H16+H17+sumkred*H18+D37+H20 -> 4946149.2
A71: Реальна річна процентна ставка, % річних | I71: =XIRR(C81:C93,B81:B93) -> 0.2655008137
A72: Застереження: наведені обчислення реальної річної процентної ставки та орієнтовної загальної вартості кредиту для споживача є репрезентативними та базуються на обраних споживачем умовах кредитування, викладених вище, і на припущенні, що договір про споживчий кредит залишатиметься дійсним протягом погодженого строку, а кредитодавець і споживач виконають свої обов’язки на умовах та у строки, визначені в договорі.
A73: Реальна річна процентна ставка обчислена на основі припущення, що процентна ставка та інші платежі за послуги кредитодавця залишатимуться незмінними та застосовуватимуться протягом строку дії договору про споживчий кредит. Реальна річна процентна ставка обчислена з використанням фінансової функції ЧИСТВНДОХ програмного продукту Microsoft Excel.
A74: Застереження: використання інших способів надання кредиту та/або зміна інших вищезазначених умов кредитування можуть мати наслідком застосування іншої реальної річної процентної ставки та орієнтовної загальної вартості кредиту для споживача.
A76: Дата надання інформації: | C76: =TODAY() -> 2025-07-14
A78: Підпис споживача:
C79: ПІБ, підпис.
B81: =TODAY() -> 2025-07-14 | C81: =-sumkred+sumkred*H16+H17+sumkred*H18+H20 -> -3959150
A82: 1 | B82: =EDATE(B81,1) -> 2025-08-14 | C82: =D25 -> 75441.6 | D82: =C82-C83 -> 0
A83: 2 | B83: =EDATE(B82,1) -> 2025-09-14 | C83: 75441.6 | D83: =C83-C84 -> 0
A84: 3 | B84: =EDATE(B83,1) -> 2025-10-14 | C84: 75441.6 | D84: 0
A85: 4 | B85: 2025-11-14 | C85: 75441.6 | D85: 0
A86: 5 | B86: 2025-12-14 | C86: 75441.6 | D86: 0
A87: 6 | B87: 2026-01-14 | C87: 75441.6 | D87: 0
A88: 7 | B88: 2026-02-14 | C88: 75441.6 | D88: 0
A89: 8 | B89: 2026-03-14 | C89: 75441.6 | D89: 0
A90: 9 | B90: 2026-04-14 | C90: 75441.6 | D90: 0
A91: 10 | B91: 2026-05-14 | C91: 75441.6 | D91: 0
A92: 11 | B92: 2026-06-14 | C92: 75441.6 | D92: -4000000
A93: 12 | B93: 2026-07-14 | C93: 4075441.6 | D93: 4000000
A94: 13 | B94: 2026-08-14 | C94: =G25 -> 75441.6 | D94: 0
A95: 14 | B95: 2026-09-14 | C95: 75441.6 | D95: 0
A96: 15 | B96: 2026-10-14 | C96: 75441.6 | D96: 0
A97: 16 | B97: 2026-11-14 | C97: 75441.6 | D97: 0
A98: 17 | B98: 2026-12-14 | C98: 75441.6 | D98: 0
A99: 18 | B99: 2027-01-14 | C99: 75441.6 | D99: 0
A100: 19 | B100: 2027-02-14 | C100: 75441.6 | D100: 0
A101: 20 | B101: 2027-03-14 | C101: 75441.6 | D101: 0
A102: 21 | B102: 2027-04-14 | C102: 75441.6 | D102: 0
A103: 22 | B103: 2027-05-14 | C103: 75441.6 | D103: 0
A104: 23 | B104: 2027-06-14 | C104: 75441.6 | D104: 0
A105: 24 | B105: 2027-07-14 | C105: 75441.6 | D105: 0
A106: 25 | B106: 2027-08-14 | C106: =J25 -> 75441.6 | D106: 0
A107: 26 | B107: 2027-09-14 | C107: 75441.6 | D107: 0
A108: 27 | B108: 2027-10-14 | C108: 75441.6 | D108: 0
A109: 28 | B109: 2027-11-14 | C109: 75441.6 | D109: 0
A110: 29 | B110: 2027-12-14 | C110: 75441.6 | D110: 0
A111: 30 | B111: 2028-01-14 | C111: 75441.6 | D111: 0
A112: 31 | B112: 2028-02-14 | C112: 75441.6 | D112: 0
A113: 32 | B113: 2028-03-14 | C113: 75441.6 | D113: 0
A114: 33 | B114: 2028-04-14 | C114: 75441.6 | D114: 0
A115: 34 | B115: 2028-05-14 | C115: 75441.6 | D115: 0
A116: 35 | B116: 2028-06-14 | C116: 75441.6 | D116: 0
A117: 36 | B117: 2028-07-14 | C117: 75441.6 | D117: 0
A118: 37 | B118: 2028-08-14 | C118: =M25 -> 75441.6 | D118: 0
A119: 38 | B119: 2028-09-14 | C119: 75441.6 | D119: 0
A120: 39 | B120: 2028-10-14 | C120: 75441.6 | D120: 0
A121: 40 | B121: 2028-11-14 | C121: 75441.6 | D121: 0
A122: 41 | B122: 2028-12-14 | C122: 75441.6 | D122: 0
A123: 42 | B123: 2029-01-14 | C123: 75441.6 | D123: 0
A124: 43 | B124: 2029-02-14 | C124: 75441.6 | D124: 0
A125: 44 | B125: 2029-03-14 | C125: 75441.6 | D125: 0
A126: 45 | B126: 2029-04-14 | C126: 75441.6 | D126: 0
A127: 46 | B127: 2029-05-14 | C127: 75441.6 | D127: 0
A128: 47 | B128: 2029-06-14 | C128: 75441.6 | D128: 0
A129: 48 | B129: 2029-07-14 | C129: 75441.6 | D129: 0
A130: 49 | B130: 2029-08-14 | C130: =P25 -> 75441.6 | D130: 0
A131: 50 | B131: 2029-09-14 | C131: 75441.6 | D131: 0
A132: 51 | B132: 2029-10-14 | C132: 75441.6 | D132: 0
A133: 52 | B133: 2029-11-14 | C133: 75441.6 | D133: 0
A134: 53 | B134: 2029-12-14 | C134: 75441.6 | D134: 0
A135: 54 | B135: 2030-01-14 | C135: 75441.6 | D135: 0
A136: 55 | B136: 2030-02-14 | C136: 75441.6 | D136: 0
A137: 56 | B137: 2030-03-14 | C137: 75441.6 | D137: 0
A138: 57 | B138: 2030-04-14 | C138: 75441.6 | D138: 0
A139: 58 | B139: 2030-05-14 | C139: 75441.6 | D139: 0
A140: 59 | B140: 2030-06-14 | C140: 75441.6 | D140: 0
A141: 60 | B141: 2030-07-14 | C141: 75441.6 | D141: 0
A142: 61 | B142: 2030-08-14 | C142: =S25 -> 75441.6 | D142: 0
A143: 62 | B143: 2030-09-14 | C143: 75441.6 | D143: 0
A144: 63 | B144: 2030-10-14 | C144: 75441.6 | D144: 0
A145: 64 | B145: 2030-11-14 | C145: 75441.6 | D145: 0
A146: 65 | B146: 2030-12-14 | C146: 75441.6 | D146: 0
A147: 66 | B147: 2031-01-14 | C147: 75441.6 | D147: =C147-C148 -> 0
A148: 67 | B148: =EDATE(B147,1) -> 2031-02-14 | C148: 75441.6 | D148: 0
A149: 68 | B149: 2031-03-14 | C149: 75441.6 | D149: 0
A150: 69 | B150: 2031-04-14 | C150: 75441.6 | D150: 0
A151: 70 | B151: 2031-05-14 | C151: 75441.6 | D151: 0
A152: 71 | B152: 2031-06-14 | C152: 75441.6 | D152: 0
A153: 72 | B153: 2031-07-14 | C153: 75441.6 | D153: 0
A154: 73 | B154: 2031-08-14 | C154: =V25 -> 75441.6 | D154: 0
A155: 74 | B155: 2031-09-14 | C155: 75441.6 | D155: 0
A156: 75 | B156: 2031-10-14 | C156: 75441.6 | D156: 0
A157: 76 | B157: 2031-11-14 | C157: 75441.6 | D157: 0
A158: 77 | B158: 2031-12-14 | C158: 75441.6 | D158: 0
A159: 78 | B159: 2032-01-14 | C159: 75441.6 | D159: 0
A160: 79 | B160: 2032-02-14 | C160: 75441.6 | D160: 0
A161: 80 | B161: 2032-03-14 | C161: 75441.6 | D161: 0
A162: 81 | B162: 2032-04-14 | C162: 75441.6 | D162: 0
A163: 82 | B163: 2032-05-14 | C163: 75441.6 | D163: 0
A164: 83 | B164: 2032-06-14 | C164: 75441.6 | D164: 0
A165: 84 | B165: 2032-07-14 | C165: 75441.6 | D165: 0
A166: 85 | B166: 2032-08-14 | C166: =D40 -> 75441.6 | D166: 0
A167: 86 | B167: 2032-09-14 | C167: 75441.6 | D167: 0
A168: 87 | B168: 2032-10-14 | C168: 75441.6 | D168: 0
A169: 88 | B169: 2032-11-14 | C169: 75441.6 | D169: 0
A170: 89 | B170: 2032-12-14 | C170: 75441.6 | D170: 0
A171: 90 | B171: 2033-01-14 | C171: 75441.6 | D171: 0
A172: 91 | B172: 2033-02-14 | C172: 75441.6 | D172: 0
A173: 92 | B173: 2033-03-14 | C173: 75441.6 | D173: 0
A174: 93 | B174: 2033-04-14 | C174: 75441.6 | D174: 0
A175: 94 | B175: 2033-05-14 | C175: 75441.6 | D175: 0
A176: 95 | B176: 2033-06-14 | C176: 75441.6 | D176: 0
A177: 96 | B177: 2033-07-14 | C177: 75441.6 | D177: 0
A178: 97 | B178: 2033-08-14 | C178: =G40 -> 75441.6 | D178: 0
A179: 98 | B179: 2033-09-14 | C179: 75441.6 | D179: 0
A180: 99 | B180: 2033-10-14 | C180: 75441.6 | D180: 0
A181: 100 | B181: 2033-11-14 | C181: 75441.6 | D181: 0
A182: 101 | B182: 2033-12-14 | C182: 75441.6 | D182: 0
A183: 102 | B183: 2034-01-14 | C183: 75441.6 | D183: 0
A184: 103 | B184: 2034-02-14 | C184: 75441.6 | D184: 0
A185: 104 | B185: 2034-03-14 | C185: 75441.6 | D185: 0
A186: 105 | B186: 2034-04-14 | C186: 75441.6 | D186: 0
A187: 106 | B187: 2034-05-14 | C187: 75441.6 | D187: 0
A188: 107 | B188: 2034-06-14 | C188: 75441.6 | D188: 0
A189: 108 | B189: 2034-07-14 | C189: 75441.6 | D189: 0
A190: 109 | B190: 2034-08-14 | C190: =J40 -> 75441.6 | D190: 0
A191: 110 | B191: 2034-09-14 | C191: 75441.6 | D191: 0
A192: 111 | B192: 2034-10-14 | C192: 75441.6 | D192: 0
A193: 112 | B193: 2034-11-14 | C193: 75441.6 | D193: 0
A194: 113 | B194: 2034-12-14 | C194: 75441.6 | D194: 0
A195: 114 | B195: 2035-01-14 | C195: 75441.6 | D195: 0
A196: 115 | B196: 2035-02-14 | C196: 75441.6 | D196: 0
A197: 116 | B197: 2035-03-14 | C197: 75441.6 | D197: 0
A198: 117 | B198: 2035-04-14 | C198: 75441.6 | D198: 0
A199: 118 | B199: 2035-05-14 | C199: 75441.6 | D199: 0
A200: 119 | B200: 2035-06-14 | C200: 75441.6 | D200: 0
A201: 120 | B201: 2035-07-14 | C201: 75441.6 | D201: 0
A202: 121 | B202: 2035-08-14 | C202: =M40 -> 75441.6 | D202: 0
A203: 122 | B203: 2035-09-14 | C203: 75441.6 | D203: 0
A204: 123 | B204: 2035-10-14 | C204: 75441.6 | D204: 0
A205: 124 | B205: 2035-11-14 | C205: 75441.6 | D205: 0
A206: 125 | B206: 2035-12-14 | C206: 75441.6 | D206: 0
A207: 126 | B207: 2036-01-14 | C207: 75441.6 | D207: 0
... 114 more rows

Sheet Калькулятор (в кінці строку)
A1: Додаток 6.1 до протоколу Кредитної Ради АБ "УКРГАЗБАНК" від 14.01.2020 №9/5
A2: ТИПОВА ФОРМА
A3: Калькулятор за програмою "Кредит під депозит"
A4: Обрані споживачем умови кредитування
A8: Обрані споживачем умови кредитування
A9: Значення у цій колонці зазначається департаментом роздрібного банкінгу згідно умов програми/продукту кредитування та можуть корегуватися (додаватися або вилучатися ) | H9: Значення у цій колонці зазначається підрозділом Банку, до якого звернувся споживач
A10: Власний платіж (внесок), % | H10: 0.1 | AA10: В кінці строку | AB10: Есть
A11: Сума / ліміт кредиту, грн. | H11: 1000000 | AA11: Класика | AB11: Нет
A12: Строк кредитування, міс. | H12: 12
A13: Процентна ставка (номінальна), % річних | H13: 16.76
A14: Схема погашення кредиту | H14: 1 | AB14: 0.007
A15: =CONCATENATE("Месячный платеж по кредиту, ",L22) -> Месячный платеж по кредиту, | H15: =IF(data=1,0,sumkred*PROC/100/((1-POWER(1+PROC/1200,-strok))*12)) -> 0 | AB15: 0.005
A16: Комісія за надання кредиту, % від суми кредиту | H16: 0 | AB16: 0.01
A17: Відкриття поточного рахунку, грн. | H17: 0
A18: Переказ/видача готівкою кредитних коштів, виданих АБ "УКРГАЗБАНК", % від суми переказу (суми кредиту) | H18: 0.005
A19: ….
A20: Комісія за внесення запису про реєстрацію обтяження предмету застави в ДРОРМ, з ПДВ | H20: 2700
A21: Відкриття поточного рахунку, операції за яким здійснюються з використанням електронних платіжних засобів ("ЕКО-кредитка") | H21: окремо плата не стягується
A22: 2 | V22: грн.
A23: Місяць | B23: 1 - й рік | I23: заповнюється Клієнтом виходячи з обраних умов кредитування | K23: 4 - й рік | N23: 5 - й рік | Q23: 6 - й рік | T23: 7 - й рік
B24: Залишок по кредиту | C24: Проценти до сплати | D24: Додаткові платежі на користь Банку/третіх осіб | E24: Загальний платіж | F24: Проценти до сплати | G24: Загальний платіж | H24: Залишок по кредиту | J24: Загальний платіж | K24: Залишок по кредиту | L24: Проценти до сплати | M24: Загальний платіж | N24: Залишок по кредиту | O24: Проценти до сплати | P24: Загальний платіж | Q24: Залишок по кредиту | R24: Проценти до сплати | S24: Загальний платіж | T24: Залишок по кредиту | U24: Проценти до сплати | V24: Загальний платіж
A25: 1 | B25: =sumkred -> 1000000 | C25: =IF(A25>strok,0,IF(data=1,B25*(PROC/36500)*30.42,B25*(PROC/36000)*30)) -> 13968.19726 | D25: =H17+H20+H16*sumkred+Переказ*sumkred -> 7700 | E25: =IF(A25=strok,B25+C25,C25+D25) -> 21668.19726 | I25: =IF(data=1,H25*(PROC/36500)*30.42,H25*(PROC/36000)*30) -> 0 | J25: =IF(data=1,IF(I25>0.0001,I25+sumproplat,0),IF(H25>sumproplat*2,sumproplat,H25+I25)) -> 0 | K25: =IF(data=1,IF((H36-sumproplat)>0,H36-sumproplat,0),IF(H36-(sumproplat-I36)>0,H36-(J36-I36),0)) -> 0 | L25: =IF(data=1,K25*(PROC/36500)*30.42,K25*(PROC/36000)*30) -> 0 | M25: =IF(data=1,IF(L25>0.0001,L25+sumproplat,0),IF(K25>sumproplat*2,sumproplat,K25+L25)) -> 0 | N25: =IF(data=1,IF((K36-sumproplat)>0,K36-sumproplat,0),IF(K36-(sumproplat-L36)>0,K36-(M36-L36),0)) -> 0 | O25: =IF(data=1,N25*(PROC/36500)*30.42,N25*(PROC/36000)*30) -> 0 | P25: =IF(data=1,IF(O25>0.0001,O25+sumproplat,0),IF(N25>sumproplat*2,sumproplat,N25+O25)) -> 0 | Q25: =IF(data=1,IF((N36-sumproplat)>0,N36-sumproplat,0),IF(N36-(sumproplat-O36)>0,N36-(P36-O36),0)) -> 0 | R25: =IF(data=1,Q25*(PROC/36500)*30.42,Q25*(PROC/36000)*30) -> 0 | S25: =IF(data=1,IF(R25>0.0001,R25+sumproplat,0),IF(Q25>sumproplat*2,sumproplat,Q25+R25)) -> 0 | T25: =IF(data=1,IF((Q36-sumproplat)>0,Q36-sumproplat,0),IF(Q36-(sumproplat-R36)>0,Q36-(S36-R36),0)) -> 0 | U25: =IF(data=1,T25*(PROC/36500)*30.42,T25*(PROC/36000)*30) -> 0 | V25: =IF(data=1,IF(U25>0.0001,U25+sumproplat,0),IF(T25>sumproplat*2,sumproplat,T25+U25)) -> 0
A26: 2 | B26: =IF(data=1,IF(A26>strok,0,B25),0) -> 1000000 | C26: 13968.19726 | D26: 0 | E26: =IF(A26=strok,B26+C26,C26) -> 13968.19726 | I26: 0 | J26: 0 | K26: =IF(data=1,IF((K25-sumproplat)>0,K25-sumproplat,0),IF(K25-(sumproplat-L25)>0,K25-(M25-L25),0)) -> 0 | L26: 0 | M26: 0 | N26: =IF(data=1,IF((N25-sumproplat)>0,N25-sumproplat,0),IF(N25-(sumproplat-O25)>0,N25-(P25-O25),0)) -> 0 | O26: 0 | P26: 0 | Q26: =IF(data=1,IF((Q25-sumproplat)>0,Q25-sumproplat,0),IF(Q25-(sumproplat-R25)>0,Q25-(S25-R25),0)) -> 0 | R26: 0 | S26: 0 | T26: =IF(data=1,IF((T25-sumproplat)>0,T25-sumproplat,0),IF(T25-(sumproplat-U25)>0,T25-(V25-U25),0)) -> 0 | U26: 0 | V26: 0
A27: 3 | B27: 1000000 | C27: 13968.19726 | D27: 0 | E27: 13968.19726 | I27: 0 | J27: 0 | K27: =IF(data=1,IF((K26-sumproplat)>0,K26-sumproplat,0),IF(K26-(sumproplat-L26)>0,K26-(M26-L26),0)) -> 0 | L27: 0 | M27: 0 | N27: =IF(data=1,IF((N26-sumproplat)>0,N26-sumproplat,0),IF(N26-(sumproplat-O26)>0,N26-(P26-O26),0)) -> 0 | O27: 0 | P27: 0 | Q27: =IF(data=1,IF((Q26-sumproplat)>0,Q26-sumproplat,0),IF(Q26-(sumproplat-R26)>0,Q26-(S26-R26),0)) -> 0 | R27: 0 | S27: 0 | T27: =IF(data=1,IF((T26-sumproplat)>0,T26-sumproplat,0),IF(T26-(sumproplat-U26)>0,T26-(V26-U26),0)) -> 0 | U27: 0 | V27: 0
A28: 4 | B28: 1000000 | C28: 13968.19726 | D28: 0 | E28: 13968.19726 | I28: 0 | J28: 0 | K28: 0 | L28: 0 | M28: 0 | N28: 0 | O28: 0 | P28: 0 | Q28: 0 | R28: 0 | S28: 0 | T28: 0 | U28: 0 | V28: 0
A29: 5 | B29: 1000000 | C29: 13968.19726 | D29: 0 | E29: 13968.19726 | I29: 0 | J29: 0 | K29: 0 | L29: 0 | M29: 0 | N29: 0 | O29: 0 | P29: 0 | Q29: 0 | R29: 0 | S29: 0 | T29: 0 | U29: 0 | V29: 0
A30: 6 | B30: 1000000 | C30: 13968.19726 | D30: 0 | E30: 13968.19726 | I30: 0 | J30: 0 | K30: 0 | L30: 0 | M30: 0 | N30: 0 | O30: 0 | P30: 0 | Q30: 0 | R30: 0 | S30: 0 | T30: 0 | U30: 0 | V30: 0
A31: 7 | B31: 1000000 | C31: 13968.19726 | D31: 0 | E31: 13968.19726 | I31: 0 | J31: 0 | K31: 0 | L31: 0 | M31: 0 | N31: 0 | O31: 0 | P31: 0 | Q31: 0 | R31: 0 | S31: 0 | T31: 0 | U31: 0 | V31: 0
A32: 8 | B32: 1000000 | C32: 13968.19726 | D32: 0 | E32: 13968.19726 | I32: 0 | J32: 0 | K32: 0 | L32: 0 | M32: 0 | N32: 0 | O32: 0 | P32: 0 | Q32: 0 | R32: 0 | S32: 0 | T32: 0 | U32: 0 | V32: 0
A33: 9 | B33: 1000000 | C33: 13968.19726 | D33: 0 | E33: 13968.19726 | I33: 0 | J33: 0 | K33: 0 | L33: 0 | M33: 0 | N33: 0 | O33: 0 | P33: 0 | Q33: 0 | R33: 0 | S33: 0 | T33: 0 | U33: 0 | V33: 0
A34: 10 | B34: 1000000 | C34: 13968.19726 | D34: 0 | E34: 13968.19726 | I34: 0 | J34: 0 | K34: 0 | L34: 0 | M34: 0 | N34: 0 | O34: 0 | P34: 0 | Q34: 0 | R34: 0 | S34: 0 | T34: 0 | U34: 0 | V34: 0
A35: 11 | B35: 1000000 | C35: 13968.19726 | D35: 0 | E35: 13968.19726 | I35: 0 | J35: 0 | K35: 0 | L35: 0 | M35: 0 | N35: 0 | O35: 0 | P35: 0 | Q35: 0 | R35: 0 | S35: 0 | T35: 0 | U35: 0 | V35: 0
A36: 12 | B36: 1000000 | C36: 13968.19726 | D36: 0 | E36: 1013968.197 | I36: 0 | J36: 0 | K36: 0 | L36: 0 | M36: 0 | N36: 0 | O36: 0 | P36: 0 | Q36: 0 | R36: 0 | S36: 0 | T36: 0 | U36: 0 | V36: 0
A37: Усього | C37: =SUM(C25:C36) -> 167618.3671 | D37: =SUM(D25:D36) -> 7700 | E37: =SUM(E25:E36) -> 1175318.367 | I37: =SUM(I25:I36) -> 0 | J37: =SUM(J25:J36) -> 0 | L37: =SUM(L25:L36) -> 0 | M37: =SUM(M25:M36) -> 0 | O37: =SUM(O25:O36) -> 0 | P37: =SUM(P25:P36) -> 0 | R37: =SUM(R25:R36) -> 0 | S37: =SUM(S25:S36) -> 0 | U37: =SUM(U25:U36) -> 0 | V37: =SUM(V25:V36) -> 0
A38: Місяць | B38: 8 - й рік | E38: 9 - й рік | H38: 10 - й рік | K38: 11 - й рік | N38: 12 - й рік | Q38: 13 - й рік | T38: 14 - й рік
B39: Залишок по кредиту | C39: Проценти до сплати | D39: Загальний платіж | E39: Залишок по кредиту | F39: Проценти до сплати | G39: Загальний платіж | H39: Залишок по кредиту | I39: Проценти до сплати | J39: Загальний платіж | K39: Залишок по кредиту | L39: Проценти до сплати | M39: Загальний платіж | N39: Залишок по кредиту | O39: Проценти до сплати | P39: Загальний платіж | Q39: Залишок по кредиту | R39: Проценти до сплати | S39: Загальний платіж | T39: Залишок по кредиту | U39: Проценти до сплати | V39: Загальний платіж
A40: 1 міс. | B40: =IF(data=1,IF((T36-sumproplat)>0,T36-sumproplat,0),IF(T36-(sumproplat-U36)>0,T36-(V36-U36),0)) -> 0 | C40: =IF(data=1,B40*(PROC/36500)*30.42,B40*(PROC/36000)*30) -> 0 | D40: =IF(data=1,IF(C40>0.0001,C40+sumproplat,0),IF(B40>sumproplat*2,sumproplat,B40+C40)) -> 0 | E40: =IF(data=1,IF((B51-sumproplat)>0,B51-sumproplat,0),IF(B51-(sumproplat-C51)>0,B51-(D51-C51),0)) -> 0 | F40: =IF(data=1,E40*(PROC/36500)*30.42,E40*(PROC/36000)*30) -> 0 | G40: =IF(data=1,IF(F40>0.0001,F40+sumproplat,0),IF(E40>sumproplat*2,sumproplat,E40+F40)) -> 0 | H40: =IF(data=1,IF((E51-sumproplat)>0,E51-sumproplat,0),IF(E51-(sumproplat-F51)>0,E51-(G51-F51),0)) -> 0 | I40: =IF(data=1,H40*(PROC/36500)*30.42,H40*(PROC/36000)*30) -> 0 | J40: =IF(data=1,IF(I40>0.0001,I40+sumproplat,0),IF(H40>sumproplat*2,sumproplat,H40+I40)) -> 0 | K40: =IF(data=1,IF((H51-sumproplat)>0,H51-sumproplat,0),IF(H51-(sumproplat-I51)>0,H51-(J51-I51),0)) -> 0 | L40: =IF(data=1,K40*(PROC/36500)*30.42,K40*(PROC/36000)*30) -> 0 | M40: =IF(data=1,IF(L40>0.0001,L40+sumproplat,0),IF(K40>sumproplat*2,sumproplat,K40+L40)) -> 0 | N40: =IF(data=1,IF((K51-sumproplat)>0,K51-sumproplat,0),IF(K51-(sumproplat-L51)>0,K51-(M51-L51),0)) -> 0 | O40: =IF(data=1,N40*(PROC/36500)*30.42,N40*(PROC/36000)*30) -> 0 | P40: =IF(data=1,IF(O40>0.0001,O40+sumproplat,0),IF(N40>sumproplat*2,sumproplat,N40+O40)) -> 0 | Q40: =IF(data=1,IF((N51-sumproplat)>0,N51-sumproplat,0),IF(N51-(sumproplat-O51)>0,N51-(P51-O51),0)) -> 0 | R40: =IF(data=1,Q40*(PROC/36500)*30.42,Q40*(PROC/36000)*30) -> 0 | S40: =IF(data=1,IF(R40>0.0001,R40+sumproplat,0),IF(Q40>sumproplat*2,sumproplat,Q40+R40)) -> 0 | T40: =IF(data=1,IF((Q51-sumproplat)>0,Q51-sumproplat,0),IF(Q51-(sumproplat-R51)>0,Q51-(S51-R51),0)) -> 0 | U40: =IF(data=1,T40*(PROC/36500)*30.42,T40*(PROC/36000)*30) -> 0 | V40: =IF(data=1,IF(U40>0.0001,U40+sumproplat,0),IF(T40>sumproplat*2,sumproplat,T40+U40)) -> 0
A41: 2.міс | B41: =IF(data=1,IF((B40-sumproplat)>0,B40-sumproplat,0),IF(B40-(sumproplat-C40)>0,B40-(D40-C40),0)) -> 0 | C41: 0 | D41: 0 | E41: =IF(data=1,IF((E40-sumproplat)>0,E40-sumproplat,0),IF(E40-(sumproplat-F40)>0,E40-(G40-F40),0)) -> 0 | F41: 0 | G41: 0 | H41: =IF(data=1,IF((H40-sumproplat)>0,H40-sumproplat,0),IF(H40-(sumproplat-I40)>0,H40-(J40-I40),0)) -> 0 | I41: 0 | J41: 0 | K41: =IF(data=1,IF((K40-sumproplat)>0,K40-sumproplat,0),IF(K40-(sumproplat-L40)>0,K40-(M40-L40),0)) -> 0 | L41: 0 | M41: 0 | N41: =IF(data=1,IF((N40-sumproplat)>0,N40-sumproplat,0),IF(N40-(sumproplat-O40)>0,N40-(P40-O40),0)) -> 0 | O41: 0 | P41: 0 | Q41: =IF(data=1,IF((Q40-sumproplat)>0,Q40-sumproplat,0),IF(Q40-(sumproplat-R40)>0,Q40-(S40-R40),0)) -> 0 | R41: 0 | S41: 0 | T41: =IF(data=1,IF((T40-sumproplat)>0,T40-sumproplat,0),IF(T40-(sumproplat-U40)>0,T40-(V40-U40),0)) -> 0 | U41: 0 | V41: 0
A42: 3 міс. | B42: =IF(data=1,IF((B41-sumproplat)>0,B41-sumproplat,0),IF(B41-(sumproplat-C41)>0,B41-(D41-C41),0)) -> 0 | C42: 0 | D42: 0 | E42: =IF(data=1,IF((E41-sumproplat)>0,E41-sumproplat,0),IF(E41-(sumproplat-F41)>0,E41-(G41-F41),0)) -> 0 | F42: 0 | G42: 0 | H42: =IF(data=1,IF((H41-sumproplat)>0,H41-sumproplat,0),IF(H41-(sumproplat-I41)>0,H41-(J41-I41),0)) -> 0 | I42: 0 | J42: 0 | K42: =IF(data=1,IF((K41-sumproplat)>0,K41-sumproplat,0),IF(K41-(sumproplat-L41)>0,K41-(M41-L41),0)) -> 0 | L42: 0 | M42: 0 | N42: =IF(data=1,IF((N41-sumproplat)>0,N41-sumproplat,0),IF(N41-(sumproplat-O41)>0,N41-(P41-O41),0)) -> 0 | O42: 0 | P42: 0 | Q42: =IF(data=1,IF((Q41-sumproplat)>0,Q41-sumproplat,0),IF(Q41-(sumproplat-R41)>0,Q41-(S41-R41),0)) -> 0 | R42: 0 | S42: 0 | T42: =IF(data=1,IF((T41-sumproplat)>0,T41-sumproplat,0),IF(T41-(sumproplat-U41)>0,T41-(V41-U41),0)) -> 0 | U42: 0 | V42: 0
A43: 2 міс. | B43: 0 | C43: 0 | D43: 0 | E43: 0 | F43: 0 | G43: 0 | H43: 0 | I43: 0 | J43: 0 | K43: 0 | L43: 0 | M43: 0 | N43: 0 | O43: 0 | P43: 0 | Q43: 0 | R43: 0 | S43: 0 | T43: 0 | U43: 0 | V43: 0
A44: 2.міс | B44: 0 | C44: 0 | D44: 0 | E44: 0 | F44: 0 | G44: 0 | H44: 0 | I44: 0 | J44: 0 | K44: 0 | L44: 0 | M44: 0 | N44: 0 | O44: 0 | P44: 0 | Q44: 0 | R44: 0 | S44: 0 | T44: 0 | U44: 0 | V44: 0
A45: 4 міс. | B45: 0 | C45: 0 | D45: 0 | E45: 0 | F45: 0 | G45: 0 | H45: 0 | I45: 0 | J45: 0 | K45: 0 | L45: 0 | M45: 0 | N45: 0 | O45: 0 | P45: 0 | Q45: 0 | R45: 0 | S45: 0 | T45: 0 | U45: 0 | V45: 0
A46: 3 міс. | B46: 0 | C46: 0 | D46: 0 | E46: 0 | F46: 0 | G46: 0 | H46: 0 | I46: 0 | J46: 0 | K46: 0 | L46: 0 | M46: 0 | N46: 0 | O46: 0 | P46: 0 | Q46: 0 | R46: 0 | S46: 0 | T46: 0 | U46: 0 | V46: 0
A47: 2.міс | B47: 0 | C47: 0 | D47: 0 | E47: 0 | F47: 0 | G47: 0 | H47: 0 | I47: 0 | J47: 0 | K47: 0 | L47: 0 | M47: 0 | N47: 0 | O47: 0 | P47: 0 | Q47: 0 | R47: 0 | S47: 0 | T47: 0 | U47: 0 | V47: 0
A48: 5 міс. | B48: 0 | C48: 0 | D48: 0 | E48: 0 | F48: 0 | G48: 0 | H48: 0 | I48: 0 | J48: 0 | K48: 0 | L48: 0 | M48: 0 | N48: 0 | O48: 0 | P48: 0 | Q48: 0 | R48: 0 | S48: 0 | T48: 0 | U48: 0 | V48: 0
A49: 4 міс. | B49: 0 | C49: 0 | D49: 0 | E49: 0 | F49: 0 | G49: 0 | H49: 0 | I49: 0 | J49: 0 | K49: 0 | L49: 0 | M49: 0 | N49: 0 | O49: 0 | P49: 0 | Q49: 0 | R49: 0 | S49: 0 | T49: 0 | U49: 0 | V49: 0
A50: 2.міс | B50: 0 | C50: 0 | D50: 0 | E50: 0 | F50: 0 | G50: 0 | H50: 0 | I50: 0 | J50: 0 | K50: 0 | L50: 0 | M50: 0 | N50: 0 | O50: 0 | P50: 0 | Q50: 0 | R50: 0 | S50: 0 | T50: 0 | U50: 0 | V50: 0
A51: 6 міс. | B51: 0 | C51: 0 | D51: 0 | E51: 0 | F51: 0 | G51: 0 | H51: 0 | I51: 0 | J51: 0 | K51: 0 | L51: 0 | M51: 0 | N51: 0 | O51: 0 | P51: 0 | Q51: 0 | R51: 0 | S51: 0 | T51: 0 | U51: 0 | V51: 0
A52: Усього | C52: =SUM(C40:C51) -> 0 | D52: =SUM(D40:D51) -> 0 | F52: =SUM(F40:F51) -> 0 | G52: =SUM(G40:G51) -> 0 | I52: =SUM(I40:I51) -> 0 | J52: =SUM(J40:J51) -> 0 | L52: =SUM(L40:L51) -> 0 | M52: =SUM(M40:M51) -> 0 | O52: =SUM(O40:O51) -> 0 | P52: =SUM(P40:P51) -> 0 | R52: =SUM(R40:R51) -> 0 | S52: =SUM(S40:S51) -> 0 | U52: =SUM(U40:U51) -> 0 | V52: =SUM(V40:V51) -> 0
A53: Місяць | B53: 15 - й рік | E53: 16 - й рік | H53: 17 - й рік | K53: 18 - й рік | N53: 19 - й рік | Q53: 20 - й рік | T53: 21 - й рік
B54: Залишок по кредиту | C54: Проценти до сплати | D54: Загальний платіж | E54: Залишок по кредиту | F54: Проценти до сплати | G54: Загальний платіж | H54: Залишок по кредиту | I54: Проценти до сплати | J54: Загальний платіж | K54: Залишок по кредиту | L54: Проценти до сплати | M54: Загальний платіж | N54: Залишок по кредиту | O54: Проценти до сплати | P54: Загальний платіж | Q54: Залишок по кредиту | R54: Проценти до сплати | S54: Загальний платіж | T54: Залишок по кредиту | U54: Проценти до сплати | V54: Загальний платіж
A55: 1 міс. | B55: =IF(data=1,IF((T51-sumproplat)>0,T51-sumproplat,0),IF(T51-(sumproplat-U51)>0,T51-(V51-U51),0)) -> 0 | C55: =IF(data=1,B55*(PROC/36500)*30.42,B55*(PROC/36000)*30) -> 0 | D55: =IF(data=1,IF(C55>0.0001,C55+sumproplat,0),IF(B55>sumproplat*2,sumproplat,B55+C55)) -> 0 | E55: =IF(data=1,IF((B66-sumproplat)>0,B66-sumproplat,0),IF(B66-(sumproplat-C66)>0,B66-(D66-C66),0)) -> 0 | F55: =IF(data=1,E55*(PROC/36500)*30.42,E55*(PROC/36000)*30) -> 0 | G55: =IF(data=1,IF(F55>0.0001,F55+sumproplat,0),IF(E55>sumproplat*2,sumproplat,E55+F55)) -> 0 | H55: =IF(data=1,IF((E66-sumproplat)>0,E66-sumproplat,0),IF(E66-(sumproplat-F66)>0,E66-(G66-F66),0)) -> 0 | I55: =IF(data=1,H55*(PROC/36500)*30.42,H55*(PROC/36000)*30) -> 0 | J55: =IF(data=1,IF(I55>0.0001,I55+sumproplat,0),IF(H55>sumproplat*2,sumproplat,H55+I55)) -> 0 | K55: =IF(data=1,IF((H66-sumproplat)>0,H66-sumproplat,0),IF(H66-(sumproplat-I66)>0,H66-(J66-I66),0)) -> 0 | L55: =IF(data=1,K55*(PROC/36500)*30.42,K55*(PROC/36000)*30) -> 0 | M55: =IF(data=1,IF(L55>0.0001,L55+sumproplat,0),IF(K55>sumproplat*2,sumproplat,K55+L55)) -> 0 | N55: =IF(data=1,IF((K66-sumproplat)>0,K66-sumproplat,0),IF(K66-(sumproplat-L66)>0,K66-(M66-L66),0)) -> 0 | O55: =IF(data=1,N55*(PROC/36500)*30.42,N55*(PROC/36000)*30) -> 0 | P55: =IF(data=1,IF(O55>0.0001,O55+sumproplat,0),IF(N55>sumproplat*2,sumproplat,N55+O55)) -> 0 | Q55: =IF(data=1,IF((N66-sumproplat)>0,N66-sumproplat,0),IF(N66-(sumproplat-O66)>0,N66-(P66-O66),0)) -> 0 | R55: =IF(data=1,Q55*(PROC/36500)*30.42,Q55*(PROC/36000)*30) -> 0 | S55: =IF(data=1,IF(R55>0.0001,R55+sumproplat,0),IF(Q55>sumproplat*2,sumproplat,Q55+R55)) -> 0 | T55: =IF(data=1,IF((Q66-sumproplat)>0,Q66-sumproplat,0),IF(Q66-(sumproplat-R66)>0,Q66-(S66-R66),0)) -> 0 | U55: =IF(data=1,T55*(PROC/36500)*30.42,T55*(PROC/36000)*30) -> 0 | V55: =IF(data=1,IF(U55>0.0001,U55+sumproplat,0),IF(T55>sumproplat*2,sumproplat,T55+U55)) -> 0
A56: 2.міс | B56: =IF(data=1,IF((B55-sumproplat)>0,B55-sumproplat,0),IF(B55-(sumproplat-C55)>0,B55-(D55-C55),0)) -> 0 | C56: 0 | D56: 0 | E56: =IF(data=1,IF((E55-sumproplat)>0,E55-sumproplat,0),IF(E55-(sumproplat-F55)>0,E55-(G55-F55),0)) -> 0 | F56: 0 | G56: 0 | H56: =IF(data=1,IF((H55-sumproplat)>0,H55-sumproplat,0),IF(H55-(sumproplat-I55)>0,H55-(J55-I55),0)) -> 0 | I56: 0 | J56: 0 | K56: =IF(data=1,IF((K55-sumproplat)>0,K55-sumproplat,0),IF(K55-(sumproplat-L55)>0,K55-(M55-L55),0)) -> 0 | L56: 0 | M56: 0 | N56: =IF(data=1,IF((N55-sumproplat)>0,N55-sumproplat,0),IF(N55-(sumproplat-O55)>0,N55-(P55-O55),0)) -> 0 | O56: 0 | P56: 0 | Q56: =IF(data=1,IF((Q55-sumproplat)>0,Q55-sumproplat,0),IF(Q55-(sumproplat-R55)>0,Q55-(S55-R55),0)) -> 0 | R56: 0 | S56: 0 | T56: =IF(data=1,IF((T55-sumproplat)>0,T55-sumproplat,0),IF(T55-(sumproplat-U55)>0,T55-(V55-U55),0)) -> 0 | U56: 0 | V56: 0
A57: 3 міс. | B57: =IF(data=1,IF((B56-sumproplat)>0,B56-sumproplat,0),IF(B56-(sumproplat-C56)>0,B56-(D56-C56),0)) -> 0 | C57: 0 | D57: 0 | E57: =IF(data=1,IF((E56-sumproplat)>0,E56-sumproplat,0),IF(E56-(sumproplat-F56)>0,E56-(G56-F56),0)) -> 0 | F57: 0 | G57: 0 | H57: =IF(data=1,IF((H56-sumproplat)>0,H56-sumproplat,0),IF(H56-(sumproplat-I56)>0,H56-(J56-I56),0)) -> 0 | I57: 0 | J57: 0 | K57: =IF(data=1,IF((K56-sumproplat)>0,K56-sumproplat,0),IF(K56-(sumproplat-L56)>0,K56-(M56-L56),0)) -> 0 | L57: 0 | M57: 0 | N57: =IF(data=1,IF((N56-sumproplat)>0,N56-sumproplat,0),IF(N56-(sumproplat-O56)>0,N56-(P56-O56),0)) -> 0 | O57: 0 | P57: 0 | Q57: =IF(data=1,IF((Q56-sumproplat)>0,Q56-sumproplat,0),IF(Q56-(sumproplat-R56)>0,Q56-(S56-R56),0)) -> 0 | R57: 0 | S57: 0 | T57: =IF(data=1,IF((T56-sumproplat)>0,T56-sumproplat,0),IF(T56-(sumproplat-U56)>0,T56-(V56-U56),0)) -> 0 | U57: 0 | V57: 0
A58: 2 міс. | B58: 0 | C58: 0 | D58: 0 | E58: 0 | F58: 0 | G58: 0 | H58: 0 | I58: 0 | J58: 0 | K58: 0 | L58: 0 | M58: 0 | N58: 0 | O58: 0 | P58: 0 | Q58: 0 | R58: 0 | S58: 0 | T58: 0 | U58: 0 | V58: 0
A59: 2.міс | B59: 0 | C59: 0 | D59: 0 | E59: 0 | F59: 0 | G59: 0 | H59: 0 | I59: 0 | J59: 0 | K59: 0 | L59: 0 | M59: 0 | N59: 0 | O59: 0 | P59: 0 | Q59: 0 | R59: 0 | S59: 0 | T59: 0 | U59: 0 | V59: 0
A60: 4 міс. | B60: 0 | C60: 0 | D60: 0 | E60: 0 | F60: 0 | G60: 0 | H60: 0 | I60: 0 | J60: 0 | K60: 0 | L60: 0 | M60: 0 | N60: 0 | O60: 0 | P60: 0 | Q60: 0 | R60: 0 | S60: 0 | T60: 0 | U60: 0 | V60: 0
A61: 3 міс. | B61: 0 | C61: 0 | D61: 0 | E61: 0 | F61: 0 | G61: 0 | H61: 0 | I61: 0 | J61: 0 | K61: 0 | L61: 0 | M61: 0 | N61: 0 | O61: 0 | P61: 0 | Q61: 0 | R61: 0 | S61: 0 | T61: 0 | U61: 0 | V61: 0
A62: 2.міс | B62: 0 | C62: 0 | D62: 0 | E62: 0 | F62: 0 | G62: 0 | H62: 0 | I62: 0 | J62: 0 | K62: 0 | L62: 0 | M62: 0 | N62: 0 | O62: 0 | P62: 0 | Q62: 0 | R62: 0 | S62: 0 | T62: 0 | U62: 0 | V62: 0
A63: 5 міс. | B63: 0 | C63: 0 | D63: 0 | E63: 0 | F63: 0 | G63: 0 | H63: 0 | I63: 0 | J63: 0 | K63: 0 | L63: 0 | M63: 0 | N63: 0 | O63: 0 | P63: 0 | Q63: 0 | R63: 0 | S63: 0 | T63: 0 | U63: 0 | V63: 0
A64: 4 міс. | B64: 0 | C64: 0 | D64: 0 | E64: 0 | F64: 0 | G64: 0 | H64: 0 | I64: 0 | J64: 0 | K64: 0 | L64: 0 | M64: 0 | N64: 0 | O64: 0 | P64: 0 | Q64: 0 | R64: 0 | S64: 0 | T64: 0 | U64: 0 | V64: 0
A65: 2.міс | B65: 0 | C65: 0 | D65: 0 | E65: 0 | F65: 0 | G65: 0 | H65: 0 | I65: 0 | J65: 0 | K65: 0 | L65: 0 | M65: 0 | N65: 0 | O65: 0 | P65: 0 | Q65: 0 | R65: 0 | S65: 0 | T65: 0 | U65: 0 | V65: 0
A66: 6 міс. | B66: 0 | C66: 0 | D66: 0 | E66: 0 | F66: 0 | G66: 0 | H66: 0 | I66: 0 | J66: 0 | K66: 0 | L66: 0 | M66: 0 | N66: 0 | O66: 0 | P66: 0 | Q66: =IF(data=1,IF((Q65-sumproplat)>0,Q65-sumproplat,0),IF(Q65-(sumproplat-R65)>0,Q65-(S65-R65),0)) -> 0 | R66: 0 | S66: 0 | T66: 0 | U66: 0 | V66: 0
A67: Усього | C67: =SUM(C55:C66) -> 0 | D67: =SUM(D55:D66) -> 0 | F67: =SUM(F55:F66) -> 0 | G67: =SUM(G55:G66) -> 0 | I67: =SUM(I55:I66) -> 0 | J67: =SUM(J55:J66) -> 0 | L67: =SUM(L55:L66) -> 0 | M67: =SUM(M55:M66) -> 0 | O67: =SUM(O55:O66) -> 0 | P67: =SUM(P55:P66) -> 0 | R67: =SUM(R55:R66) -> 0 | S67: =SUM(S55:S66) -> 0 | U67: =SUM(U55:U66) -> 0 | V67: =SUM(V55:V66) -> 0
A69: Орієнтовні загальні витрати за кредитом (проценти за користуваннґ кредитом, комісії та інші обов'язкові платежі за супровідні послуги кредитодавця,кредитного посередника (за наявності) та третії осіб, пов'язані з отриманням, обслуговуванням та поверненням кредиту), грн., з них: | I69: =SUM(I70:I71) -> 175318.3671
A70: - Платежі за супровідні послуги кредитодавця, пов'язані з отриманням, обслуговуванням та поверненням кредиту, грн. | I70: =H17+H20+H16*sumkred+Переказ*sumkred+C37 -> 175318.3671
A71: - Платежі за супровідні послуги третіх осіб, пов'язані з отриманням, обслуговуванням та поверненням кредиту), грн. | I71: 0
A72: Орієнтовна загальна вартість кредиту для споживача за весь строк користування кредитом (у т.ч. тіло кредиту, відсотки, комісії та інші платежі), грн. | I72: =E37 -> 1175318.367
A73: Реальна річна процентна ставка, % річних | I73: =XIRR(C83:C95,B83:B95) -> 0.2008205473
A74: Застереження: наведені обчислення реальної річної процентної ставки та орієнтовної загальної вартості кредиту для споживача є репрезентативними та базуються на обраних споживачем умовах кредитування, викладених вище, і на припущенні, що договір про споживчий кредит залишатиметься дійсним протягом погодженого строку, а кредитодавець і споживач виконають свої обов’язки на умовах та у строки, визначені в договорі.
A75: Реальна річна процентна ставка обчислена на основі припущення, що процентна ставка та інші платежі за послуги кредитодавця залишатимуться незмінними та застосовуватимуться протягом строку дії договору про споживчий кредит. Реальна річна процентна ставка обчислена з використанням фінансової функції ЧИСТВНДОХ програмного продукту Microsoft Excel.
A76: Застереження: використання інших способів надання кредиту та/або зміна інших вищезазначених умов кредитування можуть мати наслідком застосування іншої реальної річної процентної ставки та орієнтовної загальної вартості кредиту для споживача.
A78: Дата надання інформації: | C78: =TODAY() -> 2025-07-14
A80: Підпис споживача:
C81: ПІБ, підпис.
B83: =TODAY() -> 2025-07-14 | C83: =-sumkred+sumkred*H16+H17+sumkred*H18+H20 -> -992300
A84: 1 | B84: =EDATE(B83,1) -> 2025-08-14 | C84: =E25 -> 21668.19726 | D84: =C84-C85 -> 7700
A85: 2 | B85: =EDATE(B84,1) -> 2025-09-14 | C85: 13968.19726 | D85: =C85-C86 -> 0
A86: 3 | B86: =EDATE(B85,1) -> 2025-10-14 | C86: 13968.19726 | D86: 0
A87: 4 | B87: 2025-11-14 | C87: 13968.19726 | D87: 0
A88: 5 | B88: 2025-12-14 | C88: 13968.19726 | D88: 0
A89: 6 | B89: 2026-01-14 | C89: 13968.19726 | D89: 0
A90: 7 | B90: 2026-02-14 | C90: 13968.19726 | D90: 0
A91: 8 | B91: 2026-03-14 | C91: 13968.19726 | D91: 0
A92: 9 | B92: 2026-04-14 | C92: 13968.19726 | D92: 0
A93: 10 | B93: 2026-05-14 | C93: 13968.19726 | D93: 0
A94: 11 | B94: 2026-06-14 | C94: 13968.19726 | D94: -1000000
A95: 12 | B95: 2026-07-14 | C95: 1013968.197 | D95: 1013968.197
A96: 13 | B96: 2026-08-14 | C96: =G25 -> 0 | D96: 0
A97: 14 | B97: 2026-09-14 | C97: 0 | D97: 0
A98: 15 | B98: 2026-10-14 | C98: 0 | D98: 0
A99: 16 | B99: 2026-11-14 | C99: 0 | D99: 0
A100: 17 | B100: 2026-12-14 | C100: 0 | D100: 0
A101: 18 | B101: 2027-01-14 | C101: 0 | D101: 0
A102: 19 | B102: 2027-02-14 | C102: 0 | D102: 0
A103: 20 | B103: 2027-03-14 | C103: 0 | D103: 0
A104: 21 | B104: 2027-04-14 | C104: 0 | D104: 0
A105: 22 | B105: 2027-05-14 | C105: 0 | D105: 0
A106: 23 | B106: 2027-06-14 | C106: 0 | D106: 0
A107: 24 | B107: 2027-07-14 | C107: 0 | D107: 0
A108: 25 | B108: 2027-08-14 | C108: =J25 -> 0 | D108: 0
A109: 26 | B109: 2027-09-14 | C109: 0 | D109: 0
A110: 27 | B110: 2027-10-14 | C110: 0 | D110: 0
A111: 28 | B111: 2027-11-14 | C111: 0 | D111: 0
A112: 29 | B112: 2027-12-14 | C112: 0 | D112: 0
A113: 30 | B113: 2028-01-14 | C113: 0 | D113: 0
A114: 31 | B114: 2028-02-14 | C114: 0 | D114: 0
A115: 32 | B115: 2028-03-14 | C115: 0 | D115: 0
A116: 33 | B116: 2028-04-14 | C116: 0 | D116: 0
A117: 34 | B117: 2028-05-14 | C117: 0 | D117: 0
A118: 35 | B118: 2028-06-14 | C118: 0 | D118: 0
A119: 36 | B119: 2028-07-14 | C119: 0 | D119: 0
A120: 37 | B120: 2028-08-14 | C120: =M25 -> 0 | D120: 0
A121: 38 | B121: 2028-09-14 | C121: 0 | D121: 0
A122: 39 | B122: 2028-10-14 | C122: 0 | D122: 0
A123: 40 | B123: 2028-11-14 | C123: 0 | D123: 0
A124: 41 | B124: 2028-12-14 | C124: 0 | D124: 0
A125: 42 | B125: 2029-01-14 | C125: 0 | D125: 0
A126: 43 | B126: 2029-02-14 | C126: 0 | D126: 0
A127: 44 | B127: 2029-03-14 | C127: 0 | D127: 0
A128: 45 | B128: 2029-04-14 | C128: 0 | D128: 0
A129: 46 | B129: 2029-05-14 | C129: 0 | D129: 0
A130: 47 | B130: 2029-06-14 | C130: 0 | D130: 0
A131: 48 | B131: 2029-07-14 | C131: 0 | D131: 0
A132: 49 | B132: 2029-08-14 | C132: =P25 -> 0 | D132: 0
A133: 50 | B133: 2029-09-14 | C133: 0 | D133: 0
A134: 51 | B134: 2029-10-14 | C134: 0 | D134: 0
A135: 52 | B135: 2029-11-14 | C135: 0 | D135: 0
A136: 53 | B136: 2029-12-14 | C136: 0 | D136: 0
A137: 54 | B137: 2030-01-14 | C137: 0 | D137: 0
A138: 55 | B138: 2030-02-14 | C138: 0 | D138: 0
A139: 56 | B139: 2030-03-14 | C139: 0 | D139: 0
A140: 57 | B140: 2030-04-14 | C140: 0 | D140: 0
A141: 58 | B141: 2030-05-14 | C141: 0 | D141: 0
A142: 59 | B142: 2030-06-14 | C142: 0 | D142: 0
A143: 60 | B143: 2030-07-14 | C143: 0 | D143: 0
A144: 61 | B144: 2030-08-14 | C144: =S25 -> 0 | D144: 0
A145: 62 | B145: 2030-09-14 | C145: 0 | D145: 0
A146: 63 | B146: 2030-10-14 | C146: 0 | D146: 0
A147: 64 | B147: 2030-11-14 | C147: 0 | D147: 0
A148: 65 | B148: 2030-12-14 | C148: 0 | D148: 0
A149: 66 | B149: 2031-01-14 | C149: 0 | D149: =C149-C150 -> 0
A150: 67 | B150: =EDATE(B149,1) -> 2031-02-14 | C150: 0 | D150: 0
A151: 68 | B151: 2031-03-14 | C151: 0 | D151: 0
A152: 69 | B152: 2031-04-14 | C152: 0 | D152: 0
A153: 70 | B153: 2031-05-14 | C153: 0 | D153: 0
A154: 71 | B154: 2031-06-14 | C154: 0 | D154: 0
A155: 72 | B155: 2031-07-14 | C155: 0 | D155: 0
A156: 73 | B156: 2031-08-14 | C156: =V25 -> 0 | D156: 0
A157: 74 | B157: 2031-09-14 | C157: 0 | D157: 0
A158: 75 | B158: 2031-10-14 | C158: 0 | D158: 0
A159: 76 | B159: 2031-11-14 | C159: 0 | D159: 0
A160: 77 | B160: 2031-12-14 | C160: 0 | D160: 0
A161: 78 | B161: 2032-01-14 | C161: 0 | D161: 0
A162: 79 | B162: 2032-02-14 | C162: 0 | D162: 0
A163: 80 | B163: 2032-03-14 | C163: 0 | D163: 0
A164: 81 | B164: 2032-04-14 | C164: 0 | D164: 0
A165: 82 | B165: 2032-05-14 | C165: 0 | D165: 0
A166: 83 | B166: 2032-06-14 | C166: 0 | D166: 0
A167: 84 | B167: 2032-07-14 | C167: 0 | D167: 0
A168: 85 | B168: 2032-08-14 | C168: =D40 -> 0 | D168: 0
A169: 86 | B169: 2032-09-14 | C169: 0 | D169: 0
A170: 87 | B170: 2032-10-14 | C170: 0 | D170: 0
A171: 88 | B171: 2032-11-14 | C171: 0 | D171: 0
A172: 89 | B172: 2032-12-14 | C172: 0 | D172: 0
A173: 90 | B173: 2033-01-14 | C173: 0 | D173: 0
A174: 91 | B174: 2033-02-14 | C174: 0 | D174: 0
A175: 92 | B175: 2033-03-14 | C175: 0 | D175: 0
A176: 93 | B176: 2033-04-14 | C176: 0 | D176: 0
A177: 94 | B177: 2033-05-14 | C177: 0 | D177: 0
A178: 95 | B178: 2033-06-14 | C178: 0 | D178: 0
A179: 96 | B179: 2033-07-14 | C179: 0 | D179: 0
A180: 97 | B180: 2033-08-14 | C180: =G40 -> 0 | D180: 0
A181: 98 | B181: 2033-09-14 | C181: 0 | D181: 0
A182: 99 | B182: 2033-10-14 | C182: 0 | D182: 0
A183: 100 | B183: 2033-11-14 | C183: 0 | D183: 0
A184: 101 | B184: 2033-12-14 | C184: 0 | D184: 0
A185: 102 | B185: 2034-01-14 | C185: 0 | D185: 0
A186: 103 | B186: 2034-02-14 | C186: 0 | D186: 0
A187: 104 | B187: 2034-03-14 | C187: 0 | D187: 0
A188: 105 | B188: 2034-04-14 | C188: 0 | D188: 0
A189: 106 | B189: 2034-05-14 | C189: 0 | D189: 0
A190: 107 | B190: 2034-06-14 | C190: 0 | D190: 0
A191: 108 | B191: 2034-07-14 | C191: 0 | D191: 0
A192: 109 | B192: 2034-08-14 | C192: =J40 -> 0 | D192: 0
A193: 110 | B193: 2034-09-14 | C193: 0 | D193: 0
A194: 111 | B194: 2034-10-14 | C194: 0 | D194: 0
A195: 112 | B195: 2034-11-14 | C195: 0 | D195: 0
A196: 113 | B196: 2034-12-14 | C196: 0 | D196: 0
A197: 114 | B197: 2035-01-14 | C197: 0 | D197: 0
A198: 115 | B198: 2035-02-14 | C198: 0 | D198: 0
A199: 116 | B199: 2035-03-14 | C199: 0 | D199: 0
A200: 117 | B200: 2035-04-14 | C200: 0 | D200: 0
A201: 118 | B201: 2035-05-14 | C201: 0 | D201: 0
A202: 119 | B202: 2035-06-14 | C202: 0 | D202: 0
A203: 120 | B203: 2035-07-14 | C203: 0 | D203: 0
A204: 121 | B204: 2035-08-14 | C204: =M40 -> 0 | D204: 0
A205: 122 | B205: 2035-09-14 | C205: 0 | D205: 0
A206: 123 | B206: 2035-10-14 | C206: 0 | D206: 0
A207: 124 | B207: 2035-11-14 | C207: 0 | D207: 0
... 116 more rows
